{"text_format":"1","workbook":"xlsx","n_sheets":12,"sheets":["INSTRUCTIONS GENERALES","données","INFORMATION_PRODUIT","C1_DOCUMENTATION","C2_ACCES_DEMONTAGE","C3_DISPONIBILITE_PD","C4_PRIX","C5_SPECIFIQUE","NOTE_FINALE","ANNEXE_1","ANNEXE_2","ANNEXE_3"],"not_rendered":{"charts":0,"images":21,"macros":1,"external_links":0,"defined_names":30,"comments":5,"pivot_tables":0},"unopened":[],"bounds":{"document_bytes":16777216,"sheet_cells":100000,"rows_first":2000,"rows_last":500,"rows_between":2000,"halvings":0,"cell_chars":16384,"cell_head_chars":4096},"cells_cut":0,"cells_raw":0,"read":"whole","date_system":"1900"}

{"sheet":"INSTRUCTIONS GENERALES","index":0,"n_rows":47,"n_cols":2,"rows_kept":47,"cut":false,"hidden":false,"merged":[[43,0,43,4],[45,0,45,4],[46,0,46,4],[0,0,0,6],[20,1,20,4],[23,1,23,4],[24,1,24,4],[26,0,27,0],[26,1,26,4],[15,1,19,4],[1,0,1,4],[7,0,7,4],[8,0,8,4],[13,1,13,4],[10,0,10,4],[14,1,14,4],[41,0,41,4],[42,0,42,4],[39,0,39,4],[38,0,38,4],[31,0,31,4],[32,0,32,4],[33,0,33,4],[35,0,35,4],[34,0,34,4],[36,0,36,4],[37,0,37,4],[40,0,40,4]]}
["GRILLE CALCULANTE DE L'INDICE DE RÉPARABILITÉ DES TONDEUSES A GAZON ELECTRIQUES SUR BATTERIE"]
["INSTRUCTIONS GENERALES"]
[]
["OBJET DU FICHIER"]
["Ce fichier Excel permet de calculer l'indice de réparabilité d'une tondeuse à gazon électrique sur batterie"]
[]
["CADRE RÉGLEMENTAIRE"]
["L'article L. 541-9-2 du Code de l’environnement impose aux producteurs, importateurs, distributeurs ou autres metteurs sur le marché d’équipements électriques et électroniques de communiquer sans frais aux vendeurs de leurs produits ainsi qu’à toute personne qui en fait la demande l’indice de réparabilité de ces équipements ainsi que les paramètres ayant permis de l’établir. Cet indice vise à informer le consommateur sur la capacité à réparer le produit concerné. Les informations saisies dans le présent document doivent être véridiques et vérifiables. "]
["Les modalités de mise en oeuvre et d'application de l'indice de réparabilité sont précisées dans le Décret N°2020-1757 du 29 décembre 2020 relatif à l'indice de réparabilité des équipements électriques et électroniques, l'arrêté du 29 décembre 2020 relatif aux modalités d’affichage, à la signalétique et aux paramètres généraux de calcul de l’indice de réparabilité et l'arrêté du 29 décembre 2020 relatif aux critères, aux sous critères et au système de notation pour le calcul et l’affichage de l’indice de réparabilité des tondeuses à gazon électriques sur batterie."]
[]
["Une notice de calcul complémentaire apporte des explications et des précisions pour une application du décret et des arrêtés relatifs à l'indice de réparabilité des équipements électriques et électroniques. Toutes les informations contenues dans la notice sont à retrouver au sein de ces grilles. "]
[]
["CONTENU DU FICHIER"]
["Instructions générales","Description de l'objet du fichier Excel, du cadre réglementaire de l'indice de réparabilité, du contenu du fichier et de son mode de remplissage."]
["Information produit","Description du produit et de l’évaluation de son indice de réparabilité."]
["C1_Documentation","Critères détaillés permettant d'évaluer l'indice de réparabilité du produit.           Pour chaque onglet, toutes \"les cases en orange\" sont à compléter en sélectionnant la bonne information dans \"le menu déroulant\" ou en renseignant directement la bonne information dans la case (cas du critère 4 : prix et du fichier à transmettre). Une fois l'information renseignée, la case concernée devient \"verte\". Aucune case ne doit être laissée sans réponse. A noter que les cellules doivent être complétées une à une (elles ne doivent pas être tirées)."]
["C2_Accès démontage "]
["C3_Disponibilité des pièces détachées"]
["C4_Prix"]
["C5_Spécifique"]
["Note finale","Cet onglet calcule automatiquement la note globale de réparabilité du produit et les notes par critères et sous-critères, avant et après pondération. Ce fichier est à transmettre à tout demandeur. "]
["Annexe 1","Précision sur la terminologie utilisée pour le calcul de l'indice de réparabilité."]
["Annexe 2","Précision sur les outils qualifiés de \"communs\" et leurs standards de référence."]
["Annexe 3","Précision et cas d'application sur la notion d'étape de démontage d'une pièce."]
[]
["RÉINTIALISATION DES DONNÉES"]
["REINTIALISER LES CHOIX","Ce bouton permet de réinitialiser l'intégralité des données saisies dans le classeur. Si vous souhaitez effectuer cette action, veuillez activer la macro du fichier et cliquer sur ce bouton. ATTENTION : cette action est irréversible. "]
[]
[]
["AUTRES PRECISIONS A CARACTERE TRANSVERSAL"]
["Utilisation du vocabulaire européen (critères 1, 2 et 3)"]
["Le vocabulaire utilisé pour dénommer les informations à documenter, quelle que soit la catégorie concernée, ainsi que certaines pièces détachées  est issu du règlement (UE) 2019/2023 de la Commission du 1er octobre 2019[1] pour les lave-linges et du règlement (UE) 2019/2021 de la Commission du 1er octobre 2019[2] pour les téléviseurs. La liste de ces documents et de ces pièces est donnée dans l’annexe 1 de la présente grille."]
["Engagements différents de durée de disponibilité entre documentation et pièces détachées (critères 1 et 3)"]
["Le producteur ou l’importateur peut prendre des engagements différents pour les durées de disponibilité de la documentation et des pièces détachées pour un même équipement, par exemple : 9 ans pour la disponibilité de la documentation et 7 ans pour la disponibilité des pièces détachés. "]
["Absence d’une pièce sur l’équipement"]
["Si l’équipement ne comporte pas une pièce listée dans la liste 1 ou 2 de la catégorie concernée, alors les points correspondant à la pièce en question sont accordés. Pour les modules WIFI et Bluetooth, voir le cas particulier des téléviseurs ci-dessous. "]
["Concernant le critère 4 relatif au prix, le prix de la pièce absente n’apparait pas dans le calcul. "]
["Tondeuse à gazon électrique sur batterie"]
["Détermination des étapes de démontages"]
["Pour cette catégorie, l’action « débrancher l’équipement du secteur » n’est pas considérée comme une étape. "]
["Moteur et balai de moteur"]
["Dans le cas où un moteur de l’équipement ne dispose pas de balai, les exigences liées au calcul de l’indice ne portent que sur le moteur concerné. "]
["Prix de l’équipement si vendu sans batterie"]
["Dans le cas où l’équipement est vendu sans batterie, le prix de l’équipement à considérer pour le calcul du critère 4 relatif aux prix des pièces détachées doit inclure le prix d’une batterie compatible au moment du calcul de l’indice."]
[]
["[1] établissant des exigences en matière d’écoconception applicables aux lave-linge ménagers et aux lave-linge séchants ménagers conformément à la directive 2009/125/CE du Parlement européen et du Conseil, modifiant le règlement (CE) no 1275/2008 de la Commission et abrogeant le règlement (UE) no 1015/2010 de la Commission."]
["[2] fixant les exigences en matière d’écoconception pour les dispositifs d’affichage électronique conformément à la directive 2019/125/CE du Parlement européen et du Conseil modifiant le règlement (CE) n°642/2009 de la Commission."]

{"sheet":"données","index":1,"n_rows":34,"n_cols":4,"rows_kept":34,"cut":false,"hidden":true,"merged":[]}
["critère 1 : documentation"]
["Choix à sélectionner"]
["Non disponible "]
["si X < 5 ans"]
["si 5 ans ≤ X < 7 ans"]
["si 7 ans ≤ X < 9 ans"]
["si X ≥ 9 ans"]
["Non applicable"]
[]
[]
["critère 2 : Accès démontages ","outils","fixations"]
["facilité démontage","Choix à sélectionner","Choix à sélectionner"]
["Choix à sélectionner","A : Non démontable","A : Ni amovible ni réutilisable"]
["non démontable","B : Démontable avec des outils propriétaires","B : Amovible mais pas réutilisable"]
["si DDi ≥ 9","C : Démontable avec des outils spécifiques","C : Amovible et réutilisable"]
["si 9 > DDi ≥ 7","D : Démontable sans outils avec des outils communs ou outils fournis avec le produit","pièce absente"]
["si 7 > DDi ≥ 5","Choix à sélectionner"]
["si DDi < 5","pièce absente"]
["pièce absente","A : Non démontable"]
[]
[]
["critère 3 : Disponibilité pièces détachées"]
["durée liste 2","durée liste 1","délai livraison liste 2","délai livraison liste 1"]
["Choix à sélectionner","Choix à sélectionner","Choix à sélectionner","Choix à sélectionner"]
["si X < 5 ans","si X < 5 ans","si X >10 j","si X >10 j"]
["si 5 ans ≤ X < 7 ans","si 5 ans ≤ X < 7 ans","si 10 j ≥ X > 5 j","si 10 j ≥ X > 5 j"]
["si 7 ans ≤ X < 9 ans","si 7 ans ≤ X < 9 ans","si 5 j ≥ X > 3 j","si 5 j ≥ X > 3 j"]
["si X ≥ 9 ans","si X ≥ 9 ans","si X ≤ 3 j","si X ≤ 3 j"]
["Non disponible","Non disponible","Non disponible","Non disponible"]
["pièce absente","pièce absente","pièce absente","pièce absente"]
["Choix à sélectionner","Choix à sélectionner"]
["non démontable et disponible","non démontable et disponible"]
["Non disponible","Non disponible"]
["non démontable","non démontable"]

{"sheet":"INFORMATION_PRODUIT","index":2,"n_rows":20,"n_cols":5,"rows_kept":20,"cut":false,"hidden":false,"merged":[[19,2,19,4],[21,0,21,7],[13,2,13,4],[14,2,14,4],[15,2,15,4],[16,0,16,4],[17,2,17,4],[18,2,18,4],[12,2,12,4],[0,0,1,3],[0,4,1,7],[3,0,3,4],[5,0,5,1],[5,2,5,4],[6,0,6,4],[7,2,7,4],[8,2,8,4],[9,2,9,4],[10,2,10,4],[11,0,11,4]]}
["INFORMATIONS RELATIVES AU PRODUIT ET \nAU CALCUL DE SON INDICE",null,null,null,"Tondeuse à gazon électrique batterie"]
[]
[]
[]
[]
["DATE DU CALCUL",null,"2024-02-02"]
["DEMANDEUR DE L'ÉVALUATION"]
[null,"NOM","A compléter"]
[null,"PRÉNOM","A compléter"]
[null,"MAIL","A compléter"]
[null,"TÉLÉPHONE","A compléter"]
["RESPONSABLE DE L'ÉVALUATION",null,"A compléter"]
[null,"NOM","BAQUE"]
[null,"PRÉNOM","Jérôme"]
[null,"MAIL","jbaque@hako.fr"]
[null,"TÉLÉPHONE","01 30 81 77 15"]
["PRODUIT ÉVALUÉ"]
[null,"Nom ou marque commerciale du fournisseur","TORO"]
[null,"Adresse du fournisseur","8111 Lyndale Ave South Bloomington MN 55420-1196 USA "]
[null,"Référence du modèle donnée par le fournisseur",75642]

{"sheet":"C1_DOCUMENTATION","index":3,"n_rows":46,"n_cols":9,"rows_kept":46,"cut":false,"hidden":false,"merged":[[40,1,40,2],[27,0,27,2],[35,1,35,2],[36,1,36,2],[31,1,31,2],[29,1,29,2],[28,1,28,2],[30,1,30,2],[34,1,34,2],[33,1,33,2],[32,1,32,2],[45,0,47,6],[37,1,37,2],[0,7,1,10],[0,0,1,6],[26,3,26,4],[25,5,25,6],[26,5,26,6],[25,0,26,2],[25,3,25,4],[3,0,4,6],[20,0,20,6],[19,0,19,6],[43,0,44,2],[41,1,41,2],[38,1,38,2],[39,1,39,2],[6,0,6,6],[14,0,14,6],[15,0,15,6],[16,0,16,6],[18,0,18,6],[7,0,7,6],[8,0,8,6],[9,0,9,6],[10,0,10,6],[11,0,11,6],[12,0,12,6],[13,0,13,6],[17,0,17,6]]}
["CRITÈRE 1 : DOCUMENTATION",null,null,null,null,null,null,"Tondeuse à gazon électrique batterie"]
[]
[]
["SOUS-CRITÈRE 1.1 : ENGAGEMENT SUR LA DURÉE DE MISE À DISPOSITION SANS FRAIS DE LA DOCUMENTATION TECHNIQUE ET RELATIVE AUX CONSEILS D'UTILISATION ET D'ENTRETIEN"]
[]
[]
["PRECISIONS : "]
["- Documents / Informations : Les informations peuvent librement être réparties à l’initiative du producteur dans des documents divers physiques ou dématérialisés."]
[" Les points de la notation sont attribués si l’information visée est disponible dans un quelconque document."]
["- Langue des documents : Conformément à la Loi du 4 août 1994 relative à l’emploi de la langue française, les informations destinées aux consommateurs doivent être "]
["libellées en français ; l’anglais est toléré pour les aspects très techniques destinés aux réparateurs professionnels (exemple : les bulletins techniques)."]
["- Bulletins techniques : Ce libellé recouvre des annonces faites par le producteur à destination des réparateurs professionnels, les informant par exemple de bugs "]
["récemment découverts, des corrections à y apporter, de la rupture d’approvisionnement de pièces qui ont été remplacées par d’autres. Les points sont attribués si "]
["l’édition d’un bulletin technique est prévue au fil de l’eau (lorsque c’est nécessaire). "]
["- Informations sur l'accès aux réparateurs professionnels : Le producteur ou l’importateur est libre d’indiquer aux consommateurs les réparateurs professionnels de son choix "]
["mais il est conseillé de mentionner au minimum les annuaires des réparateurs répertoriés par l'ADEME : www.annuaire-reparation.fr   "]
["- Instructions pour l'auto-réparation : Les points correspondant aux années de disponibilité sont accordés seulement si une ou plusieurs opérations sont proposées aux "]
["consommateurs pour l’autoréparation, avec les consignes de sécurité adéquates, dans une rubrique spécifique sous le titre « autoréparation », par exemple au sein du "]
["manuel technique ou de la notice de conseils d’utilisation et d’entretien. L’article L 441-5 du code de la consommation précise la responsabilité du producteur "]
["concernant l’autoréparation."]
[]
[]
[]
[]
[]
["Engagement sur la durée de disponibilité (en années) de la documentation ",null,null,"Colonne A",null,"Colonne B"]
[null,null,null,"Réparateurs",null,"Consommateurs"]
["Type de documentation",null,null,"Durée de disponibilité","Sous-total","Durée de disponibilité","Sous-total"]
["1.1.A","Identification sans équivoque du produit (type de produit, marque, nom commercial, modèle et éventuellement le numéro de série)",null,"si X ≥ 9 ans",{"$f":"IF(D29=\"Non disponible\",0,IF(D29=\"si X < 5 ans\",0,IF(D29=\"si 5 ans ≤ X < 7 ans\",5,IF(D29=\"si 7 ans ≤ X < 9 ans\",7,IF(D29=\"si X ≥ 9 ans\",9,IF(D29=\"Non applicable\",9,0))))))","v":9},"si X ≥ 9 ans",{"$f":"IF(F29=\"Non disponible\",0,IF(F29=\"si X < 5 ans\",0,IF(F29=\"si 5 ans ≤ X < 7 ans\",5,IF(F29=\"si 7 ans ≤ X < 9 ans\",7,IF(F29=\"si X ≥ 9 ans\",9,IF(F29=\"Non applicable\",9,0))))))","v":9}]
["1.1.B ","Schéma de démontage ou vue éclatée",null,"si X ≥ 9 ans",{"$f":"IF(D30=\"Non disponible\",0,IF(D30=\"si X < 5 ans\",0,IF(D30=\"si 5 ans ≤ X < 7 ans\",5,IF(D30=\"si 7 ans ≤ X < 9 ans\",7,IF(D30=\"si X ≥ 9 ans\",9,IF(D30=\"Non applicable\",9,0))))))","v":9},"si X ≥ 9 ans",9]
["1.1.C","Schémas de câblage et de raccordement",null,"si X ≥ 9 ans",9,"si X ≥ 9 ans",9]
["1.1.D","Schémas des cartes électroniques"]
["1.1.E","Liste du matériel de réparation et de test nécessaire à la réparation",null,"si X ≥ 9 ans",9,"si X ≥ 9 ans",9]
["1.1.F","Manuel technique d'instructions relatives à la réparation",null,"si X ≥ 9 ans",9,"si X ≥ 9 ans",9]
["1.1.G","Codes d'erreurs et de diagnostic"]
["1.1.H","Informations sur composants et diagnostic",null,"si X ≥ 9 ans",9,"si X ≥ 9 ans",9]
["1.1.I","Instructions logicielles (y compris réinitialisation)"]
["1.1.J","Accès aux incidents signalés et enregistrés dans l'équipement "]
["1.1.K","Bulletins techniques",null,"si X ≥ 9 ans",9,"si X ≥ 9 ans",9]
["1.1.L","Encadrement spécifique de l'auto-réparation (opérations conseillées, instructions de sécurité et de réparation, répercussions éventuelles sur la garantie) *",null,null,null,"si X ≥ 9 ans",9]
["1.1.M","Informations sur accès aux réparateurs professionnels",null,null,null,"si X ≥ 9 ans",9]
["1.1.N","Détection des pannes et actions requises (approche grand public)",null,null,null,"si X ≥ 9 ans",9]
["1.1.O","Conseils d'utilisation et d'entretien",null,null,null,"si X ≥ 9 ans",9]
["Total sous-critère 1.1 ",null,null,null,{"$f":"SUM(E29:E39)","v":63},null,{"$f":"SUM(G29:G43)","v":99},{"$f":"E44+G44","v":162},"/162"]
[null,null,null,null,null,null,null,{"$f":"H44*10/162","v":10},"/10"]
["* Les points correspondant aux années de disponibilité sont accordés seulement si une ou plusieurs opérations sont proposées aux consommateurs pour l’autoréparation, avec les consignes de sécurité adéquates, dans une rubrique spécifique sous le titre « autoréparation », par exemple au sein du manuel technique ou de la notice de conseils d’utilisation et d’entretien. L’article L 441-5 du code de la consommation précise la responsabilité du producteur concernant l’autoréparation."]

{"sheet":"C2_ACCES_DEMONTAGE","index":4,"n_rows":80,"n_cols":10,"rows_kept":80,"cut":false,"hidden":false,"merged":[[8,9,8,12],[9,9,9,12],[10,9,14,12],[3,4,3,6],[4,4,4,6],[71,1,71,2],[73,1,73,2],[60,0,61,2],[54,0,55,8],[62,0,63,2],[60,3,61,4],[62,3,63,3],[62,4,63,4],[72,1,72,2],[69,1,69,2],[0,9,1,12],[0,0,1,8],[18,0,19,2],[38,0,39,2],[20,0,20,2],[6,0,6,6],[28,0,28,7],[38,3,39,4],[21,1,21,2],[22,1,22,2],[23,1,23,2],[24,1,24,2],[9,0,9,8],[10,0,11,8],[12,0,13,8],[25,3,26,3],[41,1,41,2],[35,0,35,3],[36,0,36,3],[42,1,42,2],[43,1,43,2],[51,0,53,8],[48,0,48,6],[31,0,32,8],[74,0,75,2],[18,3,19,4],[44,1,44,2],[40,0,40,2],[64,1,64,2],[65,1,65,2],[66,1,66,2],[67,1,67,2],[68,1,68,2],[70,1,70,2],[45,0,46,2],[45,3,46,3],[25,0,26,2]]}
["CRITÈRE 2 : DÉMONTABILITÉ, ACCÈS, OUTILS, FIXATIONS",null,null,null,null,null,null,null,null,"Tondeuse à gazon électrique batterie"]
[]
[]
["VEUILLEZ RÉPONDRE À LA QUESTION PRÉLIMINAIRE SUIVANTE : ",null,null,null,"RÉPONSE"]
["1)","Le produit à évaluer possède-t-il un porte lames ?",null,null,"Oui"]
[]
["SOUS-CRITÈRE 2.1 : FACILITÉ DE DÉMONTAGE DES PIÈCES DÉTACHÉES - PIÈCES PANNE/CASSE (LISTE 2)"]
[]
["PRÉCISION : ",null,null,null,null,null,null,null,null,"CAS PARTICULIER DE LA TONDEUSE À GAZON ELECTRIQUE"]
["Les précisions sur les étapes de démontage sont disponibles à l'annexe 3 de la présente grille calculante. ",null,null,null,null,null,null,null,null,"ÉLECTRIQUE SUR BATTERIE"]
["Une pièce est considérée non démontable dans le cas où elle n’est pas accessible unitairement et ne peut pas être désolidarisée de l’équipement ou d’un sous-ensemble, en vue de son remplacement. Dans ce cas les points du critère 2.1 correspondant ne sont pas attribués.",null,null,null,null,null,null,null,null,"Pour cette catégorie d'équipement, l'action de \"débrancher l'équipement du secteur\" (voir annexe 3) n'est pas considérée comme une étape de démontage."]
[]
["Un lien est établi entre la notation du sous-critère 2.1 et celle du sous-critère 3.1, dans le cas où une pièce n’est pas démontable: la note zéro se répercute alors d’un sous-critère à l’autre.  "]
[]
[]
[]
[]
[]
["Facilité de démontage",null,null,"Notation",null,null,"    "]
[]
["Liste 2 : Pièces panne / casse ",null,null,"Nombre d'étapes pour accès unitaire à la pièce","Sous-total"]
["2.1.A","Lames",null,"si DDi < 5",{"$f":"IF(D22=\"Non démontable\",0,IF(D22=\"si DDi ≥ 9\",0,IF(D22=\"si 9 > DDi ≥ 7\",1,IF(D22=\"si 7 > DDi ≥ 5\",2,IF(D22=\"si DDi < 5\",3,IF(D22=\"pièce absente\",3,))))))","v":3}]
["2.1.B ","Porte lames",null,"si DDi < 5",{"$f":"IF(D23=\"Non démontable\",0,IF(D23=\"si DDi ≥ 9\",0,IF(D23=\"si 9 > DDi ≥ 7\",1,IF(D23=\"si 7 > DDi ≥ 5\",2,IF(D23=\"si DDi < 5\",3,IF(D23=\"pièce absente\",3,))))))","v":3}]
["2.1.C","Interrupteur marche/arrêt",null,"si 9 > DDi ≥ 7",1]
["2.1.D","Roues",null,"si 7 > DDi ≥ 5",2]
["Total sous-critère 2.1",null,null,null,{"$f":"SUM(E22:E25)","v":9},{"$f":"IF(E5=\"Non\",\"/9\",\"/12\")","v":"/12"}]
[null,null,null,null,{"$f":"IF(E2=\"Non\",E26*10/9,E26*10/12)","v":7.5},"/10"]
[]
["SOUS-CRITÈRE 2.2 : OUTILS NÉCESSAIRES AU DÉMONTAGE DES PIÈCES DÉTACHÉES - PIÈCES PANNE/CASSE (LISTE 2)"]
[]
["PRÉCISIONS : "]
["- Les outils nécessaires au démontage unitaire d'une pièce concernent l'ensemble des outils utilisés ayant permis d'accéder à la pièce, de la démonter/désolidariser de l'équipement en vue de son remplacement sans endommager le produit (ce qui peut inclure l'accès aux fixations)."]
[]
["- Les outils utilisés sont classés en différentes catégories en fonction de leurs accessibilités et de leurs contraintes d'utilisation pour l'utilisateur final.",null,null,"Choix à sélectionner"]
["- Dans le cas où une pièce nécessiterait l’utilisation de différents types d’outils, le scénario le plus défavorable devra être retenu pour la notation. ",null,null,"Choix à sélectionner"]
[]
[{"$f":"IF(OR(D23=\"Choix à sélectionner\",D24=\"Choix à sélectionner\",D25=\"Choix à sélectionner\",D22=\"Choix à sélectionner\"),\"Merci de remplir entièrement le critère 2.1 avant le critère 2.2\",\"\")","v":""}]
[]
["Outils nécessaires au démontage",null,null,"Notation"]
[]
["Liste 2 : Pièces panne / casse ",null,null,"Types d'outils","Sous-total"]
["2.2.A","Lames",null,"D : Démontable sans outils avec des outils communs ou outils fournis avec le produit",{"$f":"IF(D42=\"A : Non démontable\",0,IF(D42=\"B : Démontable avec des outils propriétaires\",1,IF(D42=\"C : Démontable avec des outils spécifiques\",2,IF(D42=\"D : Démontable sans outils avec des outils communs ou outils fournis avec le produit\",4,IF(D42=\"pièce absente\",4,0)))))","v":4}]
["2.2.B ","Porte lames",null,"D : Démontable sans outils avec des outils communs ou outils fournis avec le produit",{"$f":"IF(D43=\"A : Non démontable\",0,IF(D43=\"B : Démontable avec des outils propriétaires\",1,IF(D43=\"C : Démontable avec des outils spécifiques\",2,IF(D43=\"D : Démontable sans outils avec des outils communs ou outils fournis avec le produit\",4,IF(D43=\"pièce absente\",4,0)))))","v":4}]
["2.2.C","Interrupteur marche/arrêt",null,"D : Démontable sans outils avec des outils communs ou outils fournis avec le produit",4]
["2.2.D","Roues",null,"D : Démontable sans outils avec des outils communs ou outils fournis avec le produit",4]
["Total sous-critère 2.2",null,null,null,{"$f":"SUM(E38:E45)","v":16},{"$f":"IF(E5=\"Non\",\"/12\",\"/16\")","v":"/16"}]
[null,null,null,null,{"$f":"IF(E5=\"Non\",E46*10/12,E46*10/16)","v":10},"/10"]
[]
["SOUS-CRITÈRE 2.3 : CARACTÉRISTIQUES DES FIXATIONS POUR L'ASSEMBLAGE DES PIÈCES DES LISTES 1 ET 2"]
[]
["PRÉCISIONS : "]
["- Fixation : Dispositif matériel qui raccorde ou fixe mécaniquement deux ou plusieurs objets, parties ou pièces détachées. Une fixation est généralement non permanente, c'est à dire, qu'elle peut être enlevée ou démontée facilement sans endommager les objets, parties ou pièces détachées raccordée(s) ou fixée(s) ensemble (exemple : vis ou clips). Un collage ou une soudure sont a contrario des fixations permanentes."]
[]
[]
["- Les fixations rencontrées et retirées sont classées en fonction de leurs accessibilités, de leurs caractères amovibles et réutilisables et des contraintes qu'elles engendrent pour la réparation du produit (exemple : fixation causant des dommages ou laissant des résidus de colle ou de soudure lors du démontage)."]
[]
["- Dans le cas où une pièce nécessiterait le retrait de différents types de fixations, le scénario le plus défavorable devra être retenu pour la notation. "]
[]
[]
[]
["Caractéristiques des fixations",null,null,"Notation "]
[]
["Liste 1 : Pièces fonctionnelles                                                                                  Liste 2 : Pièces panne/casse",null,null,"Type de fixations","Sous-total"]
[]
["2.3.A","Guidon",null,"C : Amovible et réutilisable",{"$f":"IF(D65=\"A : Ni amovible ni réutilisable\",0,IF(D65=\"B : Amovible mais pas réutilisable\",1,IF(D65=\"C : Amovible et réutilisable\",2,IF(D65=\"pièce absente\",2,0))))","v":2}]
["2.3.B ","Panier",null,"pièce absente",{"$f":"IF(D66=\"A : Ni amovible ni réutilisable\",0,IF(D66=\"B : Amovible mais pas réutilisable\",1,IF(D66=\"C : Amovible et réutilisable\",2,IF(D66=\"pièce absente\",2,0))))","v":2}]
["2.3.C","Hauteur de coupe",null,"C : Amovible et réutilisable",{"$f":"IF(D67=\"A : Ni amovible ni réutilisable\",0,IF(D67=\"B : Amovible mais pas réutilisable\",1,IF(D67=\"C : Amovible et réutilisable\",2,IF(D67=\"pièce absente\",2,0))))","v":2}]
["2.3.D","Capot",null,"C : Amovible et réutilisable",2]
["2.3.E","Moteur",null,"C : Amovible et réutilisable",2]
["2.3.F ","Batterie",null,"C : Amovible et réutilisable",{"$f":"IF(D70=\"A : Ni amovible ni réutilisable\",0,IF(D70=\"B : Amovible mais pas réutilisable\",1,IF(D70=\"C : Amovible et réutilisable\",2,IF(D70=\"pièce absente\",2,0))))","v":2}]
["2.3.G ","Lames",null,"C : Amovible et réutilisable",2]
["2.3.H","Porte lames",null,"C : Amovible et réutilisable",2]
["2.3.H","Interrupteur marche/arrêt",null,"C : Amovible et réutilisable",{"$f":"IF(D73=\"A : Ni amovible ni réutilisable\",0,IF(D73=\"B : Amovible mais pas réutilisable\",1,IF(D73=\"C : Amovible et réutilisable\",2,IF(D73=\"pièce absente\",2,0))))","v":2}]
["2.3.I","Roues",null,"C : Amovible et réutilisable",2]
["Total sous-critère 2.3",null,null,null,{"$f":"SUM(E54:E74)","v":20},{"$f":"IF(E5=\"Non\",\"/18\",\"/20\")","v":"/20"}]
[null,null,null,null,{"$f":"IF(E5=\"Non\",E75*10/18,E75*10/20)","v":10},"/10"]
[]
[]
[]
[null,null," "]

{"sheet":"C3_DISPONIBILITE_PD","index":5,"n_rows":75,"n_cols":13,"rows_kept":75,"cut":false,"hidden":false,"merged":[[72,1,72,2],[72,13,72,14],[72,15,72,16],[72,17,72,18],[72,19,72,20],[72,21,72,22],[68,21,68,22],[68,13,68,14],[68,15,68,16],[68,17,68,18],[68,19,68,20],[71,1,71,2],[69,13,69,14],[71,15,71,16],[69,1,69,2],[70,1,70,2],[71,21,71,22],[64,35,66,35],[18,0,18,5],[48,0,48,5],[55,1,55,2],[52,0,52,2],[56,1,56,2],[67,1,67,2],[68,1,68,2],[27,0,28,2],[41,1,41,2],[53,1,53,2],[54,1,54,2],[66,0,66,2],[60,0,60,8],[42,1,42,2],[67,13,67,14],[67,15,67,16],[66,15,66,16],[66,17,66,18],[65,19,65,26],[65,27,65,34],[66,29,66,30],[66,31,66,32],[66,33,66,34],[73,19,74,26],[73,27,74,34],[73,35,74,35],[68,23,68,24],[68,25,68,26],[68,27,68,28],[68,29,68,30],[68,31,68,32],[68,33,68,34],[70,23,70,24],[70,25,70,26],[70,27,70,28],[70,29,70,30],[70,31,70,32],[70,33,70,34],[71,31,71,32],[71,33,71,34],[72,25,72,26],[72,27,72,28],[72,29,72,30],[72,31,72,32],[72,33,72,34],[72,23,72,24],[71,29,71,30],[71,23,71,24],[71,25,71,26],[71,27,71,28],[70,13,70,14],[70,15,70,16],[70,17,70,18],[70,19,70,20],[70,21,70,22],[71,17,71,18],[71,19,71,20],[71,13,71,14],[0,9,1,12],[20,11,21,11],[21,9,21,10],[20,9,20,10],[34,9,34,10],[35,9,35,10],[66,27,66,28],[64,27,64,34],[64,9,64,10],[65,9,65,10],[66,21,66,22],[66,23,66,24],[66,25,66,26],[66,19,66,20],[64,19,64,26],[66,13,66,14],[0,0,1,8],[22,0,22,2],[67,33,67,34],[67,27,67,28],[67,29,67,30],[67,31,67,32],[69,31,69,32],[69,33,69,34],[69,23,69,24],[69,25,69,26],[69,27,69,28],[69,29,69,30],[67,23,67,24],[67,25,67,26],[69,15,69,16],[69,17,69,18],[69,19,69,20],[69,21,69,22],[67,21,67,22],[67,17,67,18],[67,19,67,20],[51,9,51,10],[50,0,51,2],[50,9,50,10],[73,0,74,2],[20,3,20,4],[20,5,20,6],[20,7,20,8],[21,3,21,4],[21,5,21,6],[21,7,21,8],[57,0,58,2],[50,3,50,4],[35,5,35,6],[20,0,21,2],[35,7,35,8],[35,3,35,4],[65,3,65,4],[65,5,65,6],[65,7,65,8],[51,5,51,6],[43,0,44,2],[50,5,50,6],[51,3,51,4],[23,1,23,2],[24,1,24,2],[25,1,25,2],[26,1,26,2],[3,0,3,8],[30,0,30,8],[34,0,35,2],[64,3,64,4],[64,5,64,6],[36,0,36,2],[16,0,16,8],[34,3,34,4],[34,5,34,6],[34,7,34,8],[51,7,51,8],[46,0,46,8],[64,7,64,8],[6,0,6,8],[7,0,7,8],[14,0,14,8],[15,0,15,8],[8,0,13,8],[50,7,50,8],[37,1,37,2],[38,1,38,2],[39,1,39,2],[40,1,40,2],[64,0,65,2]]}
["CRITÈRE 3 : DISPONIBILITÉ DES PIÈCES DÉTACHÉES",null,null,null,null,null,null,null,null,"Tondeuse à gazon électrique batterie"]
[]
[]
["SOUS-CRITÈRE 3.1 : ENGAGEMENT SUR LA DURÉE DE DISPONIBILITÉ DES PIÈCES DÉTACHÉES - PIÈCES PANNE / CASSE (LISTE 2)"]
[]
["PRÉCISIONS : "]
["- Définition de distributeur en pièces détachées : La définition d’un distributeur en pièces détachées est donnée dans le glossaire en annexe 1 de la \n"]
["présente notice. "]
["- Engagements sur la durée de disponibilité des pièces détachées et des délais de livraison : Pour accorder les points aux colonnes 1, il convient que le producteur dispose de son propre service de réparation en interne (exemple : via le service après-vente).  Que ce soit pour la durée de disponibilité des pièces détachées ou le délai de livraison, le producteur ou l’importateur doit retenir, parmi l’ensemble de ses pratiques envers les réparateurs agréés et indépendants, la durée ou le délai les plus pénalisants pour chaque pièce. Dans le cas où le producteur ou l'importateur ne met pas les pièces détachées directement à disposition des réparateurs indépendants, alors les points ne sont pas attribués en colonne C des critères 3.1, 3.2, 3.3 et 3.4."]
[null,null,null,null,null,null,null,null,null,null,{"$f":"'C2_ACCES_DEMONTAGE'!E5","v":"Oui"}]
[]
[]
[]
[]
["En outre, dans le cas où le producteur ou un importateur ne dispose pas d'un réseau agréé, il s'attribue les points à partir des pratiques les plus "]
["pénalisantes envers les réparateurs indépendants. "]
["- Délai de livraison : Le délai de livraison s’entend en jour ouvrable entre le jour de la commande et le jour d’arrivée chez l’acteur concerné."]
[]
[{"$f":"IF(OR(L24=\"Choix à sélectionner\",L25=\"Choix à sélectionner\",L26=\"Choix à sélectionner\",L27=\"Choix à sélectionner\"),\"Merci de remplir entièrement le critère 2.1 avant le critère 3.1\",\"\")","v":""}]
[]
["Engagement sur la durée de disponibilité \n(en années)",null,null,"Colonne A",null,"Colonne B",null,"Colonne C",null,"Colonne D"]
[null,null,null,"Producteur",null,"Distributeurs de pièces détachées",null,"Réparateurs",null,"Consommateurs"]
["Liste 2 : Pièces panne / casse",null,null,"Durée de disponibilité","Sous-total","Durée de disponibilité","Sous-total","Durée de disponibilité","Sous-total","Durée de disponibilité","Sous-total"]
["3.1.A","Lames",null,"si X ≥ 9 ans",{"$f":"IF(D24=\"si X < 5 ans\",0,IF(D24=\"si 5 ans ≤ X < 7 ans\",5,IF(D24=\"si 7 ans ≤ X < 9 ans\",7,IF(D24=\"si X ≥ 9 ans\",9,IF(D24=\"pièce absente\",9,0)))))","v":9},"si X ≥ 9 ans",{"$f":"IF(F24=\"si X < 5 ans\",0,IF(F24=\"si 5 ans ≤ X < 7 ans\",5,IF(F24=\"si 7 ans ≤ X < 9 ans\",7,IF(F24=\"si X ≥ 9 ans\",9,IF(F24=\"pièce absente\",9,0)))))","v":9},"si X ≥ 9 ans",{"$f":"IF(H24=\"si X < 5 ans\",0,IF(H24=\"si 5 ans ≤ X < 7 ans\",5,IF(H24=\"si 7 ans ≤ X < 9 ans\",7,IF(H24=\"si X ≥ 9 ans\",9,IF(H24=\"pièce absente\",9,0)))))","v":9},"si X ≥ 9 ans",{"$f":"IF(J24=\"si X < 5 ans\",0,IF(J24=\"si 5 ans ≤ X < 7 ans\",5,IF(J24=\"si 7 ans ≤ X < 9 ans\",7,IF(J24=\"si X ≥ 9 ans\",9,IF(J24=\"pièce absente\",9,0)))))","v":9},{"$f":"'C2_ACCES_DEMONTAGE'!D22","v":"si DDi < 5"}]
["3.1.B ","Porte lames",null,"si X ≥ 9 ans",9,"si X ≥ 9 ans",9,"si X ≥ 9 ans",9,"si X ≥ 9 ans",9,{"$f":"'C2_ACCES_DEMONTAGE'!D23","v":"si DDi < 5"}]
["3.1.C","Interrupteur marche/arrêt",null,"si X ≥ 9 ans",9,"si X ≥ 9 ans",9,"si X ≥ 9 ans",9,"si X ≥ 9 ans",9,{"$f":"'C2_ACCES_DEMONTAGE'!D24","v":"si 9 > DDi ≥ 7"}]
["3.1.D","Roues",null,"si X ≥ 9 ans",9,"si X ≥ 9 ans",9,"si X ≥ 9 ans",9,"si X ≥ 9 ans",9,{"$f":"'C2_ACCES_DEMONTAGE'!D25","v":"si 7 > DDi ≥ 5"}]
["Total sous-critère 3.1",null,null,null,{"$f":"SUM(E24:E27)","v":36},null,{"$f":"SUM(G24:G27)","v":36},null,{"$f":"SUM(I24:I27)","v":36},null,{"$f":"SUM(K24:K27)","v":36},{"$f":"E28+G28+I28+K28","v":144},{"$f":"IF(K10=\"Non\",\"/108\",\"/144\")","v":"/144"}]
[null,null,null,null,null,null,null,null,null,null,null,{"$f":"IF(K10=\"Non\",L28*10/108,L28*10/144)","v":10},"/10"]
[]
["SOUS-CRITÈRE 3.2 : ENGAGEMENT SUR LA DURÉE DE DISPONIBILITÉ DES PIÈCES DÉTACHÉES - PIÈCES FONCTIONNELLES (LISTE 1)"]
[]
[]
[]
["Engagement sur la durée de disponibilité \n(en années)",null,null,"Colonne A",null,"Colonne B",null,"Colonne C",null,"Colonne D"]
[null,null,null,"Producteur",null,"Distributeurs de pièces détachées",null,"Réparateurs",null,"Consommateurs"]
["Liste 1 : Pièces fonctionnelles",null,null,"Durée de disponibilité","Sous-total","Durée de disponibilité","Sous-total","Durée de disponibilité","Sous-total","Durée de disponibilité","Sous-total"]
["3.2.A","Guidon",null,"si X ≥ 9 ans",{"$f":"IF(D38=\"si X < 5 ans\",0,IF(D38=\"si 5 ans ≤ X < 7 ans\",5,IF(D38=\"si 7 ans ≤ X < 9 ans\",7,IF(D38=\"si X ≥ 9 ans\",9,IF(D38=\"pièce absente\",9,0)))))","v":9},"si X ≥ 9 ans",{"$f":"IF(F38=\"si X < 5 ans\",0,IF(F38=\"si 5 ans ≤ X < 7 ans\",5,IF(F38=\"si 7 ans ≤ X < 9 ans\",7,IF(F38=\"si X ≥ 9 ans\",9,IF(F38=\"pièce absente\",9,0)))))","v":9},"si X ≥ 9 ans",{"$f":"IF(H38=\"si X < 5 ans\",0,IF(H38=\"si 5 ans ≤ X < 7 ans\",5,IF(H38=\"si 7 ans ≤ X < 9 ans\",7,IF(H38=\"si X ≥ 9 ans\",9,IF(H38=\"pièce absente\",9,0)))))","v":9},"si X ≥ 9 ans",{"$f":"IF(J38=\"si X < 5 ans\",0,IF(J38=\"si 5 ans ≤ X < 7 ans\",5,IF(J38=\"si 7 ans ≤ X < 9 ans\",7,IF(J38=\"si X ≥ 9 ans\",9,IF(J38=\"pièce absente\",9,0)))))","v":9}]
["3.2.B","Panier",null,"pièce absente",{"$f":"IF(D39=\"si X < 5 ans\",0,IF(D39=\"si 5 ans ≤ X < 7 ans\",5,IF(D39=\"si 7 ans ≤ X < 9 ans\",7,IF(D39=\"si X ≥ 9 ans\",9,IF(D39=\"pièce absente\",9,0)))))","v":9},"pièce absente",9,"pièce absente",9,"pièce absente",9]
["3.2.C","Hauteur de coupe",null,"si X ≥ 9 ans",9,"si X ≥ 9 ans",9,"si X ≥ 9 ans",9,"si X ≥ 9 ans",9]
["3.2.D","Capot",null,"si X ≥ 9 ans",9,"si X ≥ 9 ans",9,"si X ≥ 9 ans",9,"si X ≥ 9 ans",9]
["3.2.E","Moteur",null,"si 5 ans ≤ X < 7 ans",5,"si 5 ans ≤ X < 7 ans",5,"si 5 ans ≤ X < 7 ans",5,"si 5 ans ≤ X < 7 ans",5]
["3.2.F","Batterie",null,"si 5 ans ≤ X < 7 ans",{"$f":"IF(D43=\"si X < 5 ans\",0,IF(D43=\"si 5 ans ≤ X < 7 ans\",5,IF(D43=\"si 7 ans ≤ X < 9 ans\",7,IF(D43=\"si X ≥ 9 ans\",9,IF(D43=\"pièce absente\",9,0)))))","v":5},"si 5 ans ≤ X < 7 ans",{"$f":"IF(F43=\"si X < 5 ans\",0,IF(F43=\"si 5 ans ≤ X < 7 ans\",5,IF(F43=\"si 7 ans ≤ X < 9 ans\",7,IF(F43=\"si X ≥ 9 ans\",9,IF(F43=\"pièce absente\",9,0)))))","v":5},"si 5 ans ≤ X < 7 ans",{"$f":"IF(H43=\"si X < 5 ans\",0,IF(H43=\"si 5 ans ≤ X < 7 ans\",5,IF(H43=\"si 7 ans ≤ X < 9 ans\",7,IF(H43=\"si X ≥ 9 ans\",9,IF(H43=\"pièce absente\",9,0)))))","v":5},"si 5 ans ≤ X < 7 ans",{"$f":"IF(J43=\"si X < 5 ans\",0,IF(J43=\"si 5 ans ≤ X < 7 ans\",5,IF(J43=\"si 7 ans ≤ X < 9 ans\",7,IF(J43=\"si X ≥ 9 ans\",9,IF(J43=\"pièce absente\",9,0)))))","v":5}]
["Total sous-critère 3.2",null,null,null,{"$f":"SUM(E38:E43)","v":46},null,{"$f":"SUM(G38:G43)","v":46},null,{"$f":"SUM(I38:I43)","v":46},null,{"$f":"SUM(K38:K43)","v":46},{"$f":"E44+G44+I44+K44","v":184},"/216"]
[null,null,null,null,null,null,null,null,null,null,null,{"$f":"L44*10/216","v":8.518518518518519},"/10"]
[]
["SOUS-CRITÈRE 3.3 : ENGAGEMENT SUR LES DÉLAIS DE LIVRAISON DES PIÈCES DÉTACHÉES - PIÈCES PANNE / CASSE (LISTE 2)"]
[]
[{"$f":"IF(OR(L24=\"Choix à sélectionner\",L25=\"Choix à sélectionner\",L26=\"Choix à sélectionner\",L27=\"Choix à sélectionner\"),\"Merci de remplir entièrement le critère 2.1 avant le critère 3.3\",\"\")","v":""}]
[]
["Engagement sur les délais de livraison \n(en jours ouvrables)",null,null,"Colonne A",null,"Colonne B",null,"Colonne C",null,"Colonne D"]
[null,null,null,"Producteur",null,"Distributeurs de pièces détachées",null,"Réparateurs",null,"Consommateurs"]
["Liste 2 : Pièces panne / casse",null,null,"Délais de livraison","Sous-total","Délais de livraison","Sous-total","Délais de livraison","Sous-total","Délais de livraison","Sous-total"]
["3.3.A","Lames",null,"si 10 j ≥ X > 5 j",{"$f":"IF(D54=\"si X>10 j\",0,IF(D54=\"si 10 j ≥ X > 5 j\",1,IF(D54=\"si 5 j ≥ X > 3 j\",2, IF(D54=\"si X ≤ 3 j\",3,IF(D54=\"pièce absente\",3,0)))))","v":1},"si 5 j ≥ X > 3 j",{"$f":"IF(F54=\"si X>10 j\",0,IF(F54=\"si 10 j ≥ X > 5 j\",1,IF(F54=\"si 5 j ≥ X > 3 j\",2, IF(F54=\"si X ≤ 3 j\",3,IF(F54=\"pièce absente\",3,0)))))","v":2},"si X ≤ 3 j",{"$f":"IF(H54=\"si X>10 j\",0,IF(H54=\"si 10 j ≥ X > 5 j\",1,IF(H54=\"si 5 j ≥ X > 3 j\",2, IF(H54=\"si X ≤ 3 j\",3,IF(H54=\"pièce absente\",3,0)))))","v":3},"si X ≤ 3 j",{"$f":"IF(J54=\"si X>10 j\",0,IF(J54=\"si 10 j ≥ X > 5 j\",1,IF(J54=\"si 5 j ≥ X > 3 j\",2, IF(J54=\"si X ≤ 3 j\",3,IF(J54=\"pièce absente\",3,0)))))","v":3}]
["3.3.B","Porte lames",null,"si 10 j ≥ X > 5 j",{"$f":"IF(D55=\"si X>10 j\",0,IF(D55=\"si 10 j ≥ X > 5 j\",1,IF(D55=\"si 5 j ≥ X > 3 j\",2, IF(D55=\"si X ≤ 3 j\",3,IF(D55=\"pièce absente\",3,0)))))","v":1},"si 5 j ≥ X > 3 j",{"$f":"IF(F55=\"si X>10 j\",0,IF(F55=\"si 10 j ≥ X > 5 j\",1,IF(F55=\"si 5 j ≥ X > 3 j\",2, IF(F55=\"si X ≤ 3 j\",3,IF(F55=\"pièce absente\",3,0)))))","v":2},"si X ≤ 3 j",{"$f":"IF(H55=\"si X>10 j\",0,IF(H55=\"si 10 j ≥ X > 5 j\",1,IF(H55=\"si 5 j ≥ X > 3 j\",2, IF(H55=\"si X ≤ 3 j\",3,IF(H55=\"pièce absente\",3,0)))))","v":3},"si X ≤ 3 j",{"$f":"IF(J55=\"si X>10 j\",0,IF(J55=\"si 10 j ≥ X > 5 j\",1,IF(J55=\"si 5 j ≥ X > 3 j\",2, IF(J55=\"si X ≤ 3 j\",3,IF(J55=\"pièce absente\",3,0)))))","v":3}]
["3.3.C","Interrupteur marche/arrêt",null,"si 10 j ≥ X > 5 j",{"$f":"IF(D56=\"si X>10 j\",0,IF(D56=\"si 10 j ≥ X > 5 j\",1,IF(D56=\"si 5 j ≥ X > 3 j\",2, IF(D56=\"si X ≤ 3 j\",3,IF(D56=\"pièce absente\",3,0)))))","v":1},"si 5 j ≥ X > 3 j",2,"si X ≤ 3 j",{"$f":"IF(H56=\"si X>10 j\",0,IF(H56=\"si 10 j ≥ X > 5 j\",1,IF(H56=\"si 5 j ≥ X > 3 j\",2, IF(H56=\"si X ≤ 3 j\",3,IF(H56=\"pièce absente\",3,0)))))","v":3},"si X ≤ 3 j",{"$f":"IF(J56=\"si X>10 j\",0,IF(J56=\"si 10 j ≥ X > 5 j\",1,IF(J56=\"si 5 j ≥ X > 3 j\",2, IF(J56=\"si X ≤ 3 j\",3,IF(J56=\"pièce absente\",3,0)))))","v":3}]
["3.3.D","Roues",null,"si 10 j ≥ X > 5 j",1,"si 5 j ≥ X > 3 j",2,"si X ≤ 3 j",{"$f":"IF(H57=\"si X>10 j\",0,IF(H57=\"si 10 j ≥ X > 5 j\",1,IF(H57=\"si 5 j ≥ X > 3 j\",2, IF(H57=\"si X ≤ 3 j\",3,IF(H57=\"pièce absente\",3,0)))))","v":3},"si X ≤ 3 j",{"$f":"IF(J57=\"si X>10 j\",0,IF(J57=\"si 10 j ≥ X > 5 j\",1,IF(J57=\"si 5 j ≥ X > 3 j\",2, IF(J57=\"si X ≤ 3 j\",3,IF(J57=\"pièce absente\",3,0)))))","v":3}]
["Total sous-critère 3.3",null,null,null,{"$f":"SUM(E54:E57)","v":4},null,{"$f":"SUM(G54:G57)","v":8},null,{"$f":"SUM(I54:I57)","v":12},null,{"$f":"SUM(K54:K57)","v":12},{"$f":"E58+G58+I58+K58","v":36},{"$f":"IF(K40=\"Non\",\"/36\",\"/48\")","v":"/48"}]
[null,null,null,null,null,null,null,null,null,null,null,{"$f":"IF(K40=\"Non\",L58*10/36,L58*10/48)","v":7.5},"/10"]
[]
["SOUS-CRITÈRE 3.4 : ENGAGEMENT SUR LES DÉLAIS DE LIVRAISON DES PIÈCES DÉTACHÉES - PIÈCES FONCTIONNELLES (LISTE 1)"]
[]
[]
[]
["Engagement sur les délais de livraison \n(en jours ouvrables)",null,null,"Colonne A",null,"Colonne B",null,"Colonne C",null,"Colonne D"]
[null,null,null,"Producteur",null,"Distributeurs de pièces détachées",null,"Réparateurs",null,"Consommateurs"]
["Liste 1 : Pièces fonctionnelles",null,null,"Délais de livraison","Sous-total","Délais de livraison","Sous-total","Délais de livraison","Sous-total","Délais de livraison","Sous-total"]
["3.4.A","Guidon",null,"si 10 j ≥ X > 5 j",{"$f":"IF(D68=\"si X>10 j\",0,IF(D68=\"si 10 j ≥ X > 5 j\",1,IF(D68=\"si 5 j ≥ X > 3 j\",2, IF(D68=\"si X ≤ 3 j\",3,IF(D68=\"pièce absente\",3,0)))))","v":1},"si 5 j ≥ X > 3 j",{"$f":"IF(F68=\"si X>10 j\",0,IF(F68=\"si 10 j ≥ X > 5 j\",1,IF(F68=\"si 5 j ≥ X > 3 j\",2, IF(F68=\"si X ≤ 3 j\",3,IF(F68=\"pièce absente\",3,0)))))","v":2},"si X ≤ 3 j",{"$f":"IF(H68=\"si X>10 j\",0,IF(H68=\"si 10 j ≥ X > 5 j\",1,IF(H68=\"si 5 j ≥ X > 3 j\",2, IF(H68=\"si X ≤ 3 j\",3,IF(H68=\"pièce absente\",3,0)))))","v":3},"si X ≤ 3 j",{"$f":"IF(J68=\"si X>10 j\",0,IF(J68=\"si 10 j ≥ X > 5 j\",1,IF(J68=\"si 5 j ≥ X > 3 j\",2, IF(J68=\"si X ≤ 3 j\",3,IF(J68=\"pièce absente\",3,0)))))","v":3}]
["3.4.B","Panier",null,"si 10 j ≥ X > 5 j",{"$f":"IF(D69=\"si X>10 j\",0,IF(D69=\"si 10 j ≥ X > 5 j\",1,IF(D69=\"si 5 j ≥ X > 3 j\",2, IF(D69=\"si X ≤ 3 j\",3,IF(D69=\"pièce absente\",3,0)))))","v":1},"si 5 j ≥ X > 3 j",{"$f":"IF(F69=\"si X>10 j\",0,IF(F69=\"si 10 j ≥ X > 5 j\",1,IF(F69=\"si 5 j ≥ X > 3 j\",2, IF(F69=\"si X ≤ 3 j\",3,IF(F69=\"pièce absente\",3,0)))))","v":2},"si X ≤ 3 j",{"$f":"IF(H69=\"si X>10 j\",0,IF(H69=\"si 10 j ≥ X > 5 j\",1,IF(H69=\"si 5 j ≥ X > 3 j\",2, IF(H69=\"si X ≤ 3 j\",3,IF(H69=\"pièce absente\",3,0)))))","v":3},"si X ≤ 3 j",{"$f":"IF(J69=\"si X>10 j\",0,IF(J69=\"si 10 j ≥ X > 5 j\",1,IF(J69=\"si 5 j ≥ X > 3 j\",2, IF(J69=\"si X ≤ 3 j\",3,IF(J69=\"pièce absente\",3,0)))))","v":3}]
["3.4.C","Hauteur de coupe",null,"si 10 j ≥ X > 5 j",{"$f":"IF(D70=\"si X>10 j\",0,IF(D70=\"si 10 j ≥ X > 5 j\",1,IF(D70=\"si 5 j ≥ X > 3 j\",2, IF(D70=\"si X ≤ 3 j\",3,IF(D70=\"pièce absente\",3,0)))))","v":1},"si 5 j ≥ X > 3 j",2,"si X ≤ 3 j",{"$f":"IF(H70=\"si X>10 j\",0,IF(H70=\"si 10 j ≥ X > 5 j\",1,IF(H70=\"si 5 j ≥ X > 3 j\",2, IF(H70=\"si X ≤ 3 j\",3,IF(H70=\"pièce absente\",3,0)))))","v":3},"si X ≤ 3 j",{"$f":"IF(J70=\"si X>10 j\",0,IF(J70=\"si 10 j ≥ X > 5 j\",1,IF(J70=\"si 5 j ≥ X > 3 j\",2, IF(J70=\"si X ≤ 3 j\",3,IF(J70=\"pièce absente\",3,0)))))","v":3}]
["3.4.D","Capot",null,"si 10 j ≥ X > 5 j",{"$f":"IF(D71=\"si X>10 j\",0,IF(D71=\"si 10 j ≥ X > 5 j\",1,IF(D71=\"si 5 j ≥ X > 3 j\",2, IF(D71=\"si X ≤ 3 j\",3,IF(D71=\"pièce absente\",3,0)))))","v":1},"si 5 j ≥ X > 3 j",2,"si X ≤ 3 j",{"$f":"IF(H71=\"si X>10 j\",0,IF(H71=\"si 10 j ≥ X > 5 j\",1,IF(H71=\"si 5 j ≥ X > 3 j\",2, IF(H71=\"si X ≤ 3 j\",3,IF(H71=\"pièce absente\",3,0)))))","v":3},"si X ≤ 3 j",{"$f":"IF(J71=\"si X>10 j\",0,IF(J71=\"si 10 j ≥ X > 5 j\",1,IF(J71=\"si 5 j ≥ X > 3 j\",2, IF(J71=\"si X ≤ 3 j\",3,IF(J71=\"pièce absente\",3,0)))))","v":3}]
["3.4.E","Moteur",null,"si 10 j ≥ X > 5 j",1,"si 5 j ≥ X > 3 j",2,"si X ≤ 3 j",{"$f":"IF(H72=\"si X>10 j\",0,IF(H72=\"si 10 j ≥ X > 5 j\",1,IF(H72=\"si 5 j ≥ X > 3 j\",2, IF(H72=\"si X ≤ 3 j\",3,IF(H72=\"pièce absente\",3,0)))))","v":3},"si X ≤ 3 j",{"$f":"IF(J72=\"si X>10 j\",0,IF(J72=\"si 10 j ≥ X > 5 j\",1,IF(J72=\"si 5 j ≥ X > 3 j\",2, IF(J72=\"si X ≤ 3 j\",3,IF(J72=\"pièce absente\",3,0)))))","v":3}]
["3.4.F","Batterie",null,"si 10 j ≥ X > 5 j",{"$f":"IF(D73=\"si X>10 j\",0,IF(D73=\"si 10 j ≥ X > 5 j\",1,IF(D73=\"si 5 j ≥ X > 3 j\",2, IF(D73=\"si X ≤ 3 j\",3,IF(D73=\"pièce absente\",3,0)))))","v":1},"si 5 j ≥ X > 3 j",{"$f":"IF(F73=\"si X>10 j\",0,IF(F73=\"si 10 j ≥ X > 5 j\",1,IF(F73=\"si 5 j ≥ X > 3 j\",2, IF(F73=\"si X ≤ 3 j\",3,IF(F73=\"pièce absente\",3,0)))))","v":2},"si X ≤ 3 j",{"$f":"IF(H73=\"si X>10 j\",0,IF(H73=\"si 10 j ≥ X > 5 j\",1,IF(H73=\"si 5 j ≥ X > 3 j\",2, IF(H73=\"si X ≤ 3 j\",3,IF(H73=\"pièce absente\",3,0)))))","v":3},"si X ≤ 3 j",{"$f":"IF(J73=\"si X>10 j\",0,IF(J73=\"si 10 j ≥ X > 5 j\",1,IF(J73=\"si 5 j ≥ X > 3 j\",2, IF(J73=\"si X ≤ 3 j\",3,IF(J73=\"pièce absente\",3,0)))))","v":3}]
["Total sous-critère 3.4",null,null,null,{"$f":"SUM(E68:E73)","v":6},null,{"$f":"SUM(G68:G73)","v":12},null,{"$f":"SUM(I68:I73)","v":18},null,{"$f":"SUM(K68:K73)","v":18},{"$f":"E74+G74+K74+I74","v":54},"/60"]
[null,null,null,null,null,null,null,null,null,null,null,{"$f":"L74*10/60","v":9},"/10"]

{"sheet":"C4_PRIX","index":6,"n_rows":144,"n_cols":20,"rows_kept":144,"cut":false,"hidden":false,"merged":[[22,0,22,10],[16,0,18,10],[19,0,20,10],[0,0,1,10],[0,11,1,15],[3,12,20,17],[3,0,3,10],[4,0,8,10],[9,0,10,10],[11,0,12,10],[13,0,15,10],[24,0,26,5],[24,6,24,9],[25,6,26,6],[25,7,26,7],[25,8,26,8],[25,9,26,9],[27,13,29,13],[28,0,28,5],[29,0,29,5],[40,0,41,6],[34,0,34,11],[35,0,35,11],[36,0,36,11],[37,0,37,11],[38,0,38,11],[27,0,27,5],[27,7,29,7],[27,8,29,8],[27,9,29,9],[27,10,29,11],[27,12,29,12]]}
["CRITÈRE 4 : PRIX DES PIÈCES DÉTACHÉES",null,null,null,null,null,null,null,null,null,null,"Tondeuse à gazon électrique batterie"]
[]
[]
["PRECISIONS :",null,null,null,null,null,null,null,null,null,null,null,"Rappel des dispositions réglementaires\n« Sous-critère 4.1. Rapport entre le prix de vente des pièces par le constructeur ou l’importateur et le prix de vente des équipements par le constructeur ou l’importateur.\nLe critère est établi en faisant le rapport entre :\n[le prix hors taxe de la pièce la plus chère de la liste 2 + (moyenne des prix hors taxe des autres pièces de la liste 2)]/2\net le prix hors taxe du modèle de l’équipement concerné,\noù chaque prix s’entend comme le prix hors taxes du barème tarifaire en vigueur au moment du calcul de l’indice et figurant dans les conditions générales de vente du fabricant ou de l’importateur, ou à défaut dans tout document contractuel pertinent.\nDans le cas où un fabricant ou un importateur dispose, pour les pièces ou les équipements considérés, de plusieurs barèmes tarifaires selon les différentes catégories de clients distributeurs ou vendeurs, les prix retenus pour le calcul de l’indice sont ceux du barème ayant représenté la part la plus élevée du chiffre d’affaires du fabricant ou de l’importateur pour le type de pièces ou le type d’équipement concernés, au cours du dernier exercice clos.\nDans le cas où certaines de ces pièces sont indissociables ou bien dans le cas où la pièce visée est intégrée à un module, qui est seul disponible, le prix à prendre en compte est le prix cumulé des pièces ou le prix du module. »"]
["Déduction des frais de livraison : Le principe retenu est de procéder à un calcul hors frais de transport ou de livraison. Si ces derniers sont inclus dans les tarifs des conditions générales de vente, il appartient au producteur ou importateur de les déduire pour procéder au calcul du ratio. En particulier pour le prix des pièces détachées, deux modalités sont possibles pour déduire les frais de transport ou de livraison : unitairement pour chacune des pièces de la liste 2 ou forfaitairement (en valeur absolue ou en pourcentage). Il en va de même pour le prix de l’équipement neuf.   "]
[]
[]
[]
[]
["Pièce(s) détachée(s) faisant partie d’un lot : Dans le cas où l’une ou plusieurs des pièces de la liste 2 font partie d’un lot proposé à la vente ou de tout autre sous-ensemble de pièces indissociables, le prix de la pièce concernée est le prix de ce sous ensemble. "]
[]
["Pièce non disponible : Dans le cas où, au moment du calcul de l’indice, une pièce de la liste 2 n’est pas disponible (c’est-à-dire auprès d'aucune catégorie d'acteur), le nombre de points attribués pour le critère 4 relatif aux prix des pièces détachées est 0.  "]
[]
["Pièces non gérées par le producteur ou l’importateur : Dans le cas où des pièces de la liste 2 ne sont pas gérées par le producteur ou l’importateur, le prix des pièces à considérer est alors celui des conditions générales de vente du fournisseur au moment du calcul de l'indice."]
[]
[]
["Options de produits portant la même référence : Dans le cas où les options sont proposées pour la même référence, et qu’elles n’ont pas d’influence sur les caractéristiques techniques aux fins du calcul de l’indice, alors le calcul du ratio prix à réaliser à partir du prix des pièces détachées et du prix de la version la plus courante du produit concerné. "]
[]
[]
["Absence d’une pièce : Si l’équipement ne comporte pas une pièce listée dans la liste 1 ou 2 de la catégorie concernée alors le prix de la pièce absente n’apparait pas dans le calcul du ratio. "]
[]
[]
[{"$f":"IF(OR(O25=\"Choix à sélectionner\",P25=\"Choix à sélectionner\",Q25=\"Choix à sélectionner\",R25=\"Choix à sélectionner\",O26=\"Choix à sélectionner\",P26=\"Choix à sélectionner\",Q26=\"Choix à sélectionner\",R26=\"Choix à sélectionner\",R27=\"Choix à sélectionner\",Q27=\"Choix à sélectionner\",O27=\"Choix à sélectionner\",P27=\"Choix à sélectionner\",O28=\"Choix à sélectionner\",P28=\"Choix à sélectionner\",Q28=\"Choix à sélectionner\",R28=\"Choix à sélectionner\",),\"Merci de remplir entièrement le critère 3.1 avant le critère 4\",\"\")","v":""}]
[]
["Critère PRIX",null,null,null,null,null,"Notation",null,null,null,null,null,null,null,{"$f":"'C3_DISPONIBILITE_PD'!D24","v":"si X ≥ 9 ans"},{"$f":"'C3_DISPONIBILITE_PD'!F24","v":"si X ≥ 9 ans"},{"$f":"'C3_DISPONIBILITE_PD'!H24","v":"si X ≥ 9 ans"},{"$f":"'C3_DISPONIBILITE_PD'!J24","v":"si X ≥ 9 ans"},null,{"$f":"IF(AND(O25=\"Non disponible\",P25=\"Non disponible\",Q25=\"Non disponible\",R25=\"Non disponible\"),0,\"dispo\")","v":"dispo"}]
[null,null,null,null,null,null,"Valeur                   (en euros)","Score                                     (en %)","POINTS                                                 (/100)","NOTE\n(/10)",null,null,null,null,{"$f":"'C3_DISPONIBILITE_PD'!D25","v":"si X ≥ 9 ans"},{"$f":"'C3_DISPONIBILITE_PD'!F25","v":"si X ≥ 9 ans"},{"$f":"'C3_DISPONIBILITE_PD'!H25","v":"si X ≥ 9 ans"},{"$f":"'C3_DISPONIBILITE_PD'!J25","v":"si X ≥ 9 ans"},null,"dispo"]
[null,null,null,null,null,null,null,null,null,null,null,null,null,null,{"$f":"'C3_DISPONIBILITE_PD'!D26","v":"si X ≥ 9 ans"},{"$f":"'C3_DISPONIBILITE_PD'!F26","v":"si X ≥ 9 ans"},{"$f":"'C3_DISPONIBILITE_PD'!H26","v":"si X ≥ 9 ans"},{"$f":"'C3_DISPONIBILITE_PD'!J26","v":"si X ≥ 9 ans"},null,{"$f":"IF(AND(O27=\"Non disponible\",P27=\"Non disponible\",Q27=\"Non disponible\",R27=\"Non disponible\"),0,\"dispo\")","v":"dispo"}]
["Prix hors taxe de la pièce la plus chère (liste 2)",null,null,null,null,null,82.69,{"$f":"IF(ISERROR((($G$28+($G$29))/2)/$G$30),\"0%\",((($G$28+($G$29))/A46)/$G$30))","v":7.6118008276598583E-3},{"$f":"IF(M28<0,0,IF(M28>100,100,MROUND(M28,5)))","v":100},{"$f":"IF(M28/10<0,0,IF(M28/10>=10,10,MROUND(M28,5)/10))","v":10},{"$f":"IF(I28<0,\"NOTE DE ZERO                   CAR SCORE HORS BAREME DE NOTATION\")","v":false},null,{"$f":"IF(FORECAST($H$28,A44:A144,B44:B144)=150,0,FORECAST($H$28,A44:A144,B44:B144))","v":146.19409958617004},{"$f":"IF(M28/10<0,0,IF(M28/10>=10,10,M28/10 ))","v":10},{"$f":"'C3_DISPONIBILITE_PD'!D27","v":"si X ≥ 9 ans"},{"$f":"'C3_DISPONIBILITE_PD'!F27","v":"si X ≥ 9 ans"},{"$f":"'C3_DISPONIBILITE_PD'!H27","v":"si X ≥ 9 ans"},{"$f":"'C3_DISPONIBILITE_PD'!J27","v":"si X ≥ 9 ans"},null,{"$f":"IF(AND(O28=\"Non disponible\",P28=\"Non disponible\",Q28=\"Non disponible\",R28=\"Non disponible\"),0,\"dispo\")","v":"dispo"}]
["Moyenne hors taxe des prix des autres pièces (liste 2)",null,null,null,null,null,31.35]
["Prix hors taxe du modèle de l'équipement concerné",null,null,null,null,null,7491]
[]
[]
[]
[]
["Le nombre de points obtenu pour ce critère est déterminé de la façon suivante :"]
["- si le résultat du rapport est supérieur à 0,3 alors le nombre de points est 0 ;"]
["- si le résultat du rapport est inférieur à 0,1 alors le nombre de points est 100 ;"]
["- si le résultat du rapport est compris entre 0,1 et 0,3 alors le nombre de points est déterminé selon le tableau de correspondance"]
["suivant :"]
[]
["DATA"]
[]
["y","x","a","b","y '",null,"x ' "]
[0,{"$f":"$C$44*A44+$D$44","v":0.3},-2E-3,0.3,100,0,{"$f":"$C$44*E44+$D$44","v":9.9999999999999978E-2},{"$f":"IF($H$28>=G44,$H$28,IF($H$28<G44,-2.2))","v":-2.2000000000000002},0.2]
[1,0.29799999999999999,-0.2,0.3,99,0,0.10199999999999998,{"$f":"IF($H$28>=G45,$H$28,IF($H$28<G45,-2.2))","v":-2.2000000000000002},0.2]
[2,0.29599999999999999,-0.2,0.3,98,0,0.10399999999999998,-2.2000000000000002,0.2]
[3,0.29399999999999998,-0.2,0.3,97,0,0.10599999999999998,-2.2000000000000002,0.2]
[4,0.29199999999999998,-0.2,0.3,96,0,0.10799999999999998,-2.2000000000000002,0.2]
[5,0.28999999999999998,-0.2,0.3,95,0,0.10999999999999999,-2.2000000000000002,0.2]
[6,0.28799999999999998,-0.2,0.3,94,0,0.11199999999999999,-2.2000000000000002,0.2]
[7,0.28599999999999998,-0.2,0.3,93,0,0.11399999999999999,-2.2000000000000002,0.2]
[8,0.28399999999999997,-0.2,0.3,92,0,0.11599999999999999,-2.2000000000000002,0.2,null,null,null,null,null,null,null," "]
[9,0.28199999999999997,-0.2,0.3,91,0,0.11799999999999999,-2.2000000000000002,0.2]
[10,0.27999999999999997,-0.2,0.3,90,0,0.12,-2.2000000000000002,0.2]
[11,0.27799999999999997,-0.2,0.3,89,0,0.122,-2.2000000000000002,0.2]
[12,0.27599999999999997,-0.2,0.3,88,0,0.124,-2.2000000000000002,0.2]
[13,0.27399999999999997,-0.2,0.3,87,0,0.12599999999999997,-2.2000000000000002,0.2]
[14,0.27199999999999996,-0.2,0.3,86,0,0.12799999999999997,-2.2000000000000002,0.2]
[15,0.27,-0.2,0.3,85,0,0.12999999999999998,-2.2000000000000002,0.2]
[16,0.26800000000000002,-0.2,0.3,84,0,0.13199999999999998,-2.2000000000000002,0.2]
[17,0.26600000000000001,-0.2,0.3,83,0,0.13399999999999998,-2.2000000000000002,0.2]
[18,0.26400000000000001,-0.2,0.3,82,0,0.13599999999999998,-2.2000000000000002,0.2]
[19,0.26200000000000001,-0.2,0.3,81,0,0.13799999999999998,-2.2000000000000002,0.2]
[20,0.26,-0.2,0.3,80,0,0.13999999999999999,-2.2000000000000002,0.2]
[21,0.25800000000000001,-0.2,0.3,79,0,0.14199999999999999,-2.2000000000000002,0.2]
[22,0.25600000000000001,-0.2,0.3,78,0,0.14399999999999999,-2.2000000000000002,0.2]
[23,0.254,-0.2,0.3,77,0,0.14599999999999999,-2.2000000000000002,0.2]
[24,0.252,-0.2,0.3,76,0,0.14799999999999999,-2.2000000000000002,0.2]
[25,0.25,-0.2,0.3,75,0,0.15,-2.2000000000000002,0.2]
[26,0.248,-0.2,0.3,74,0,0.152,-2.2000000000000002,0.2]
[27,0.246,-0.2,0.3,73,0,0.154,-2.2000000000000002,0.2]
[28,0.24399999999999999,-0.2,0.3,72,0,0.15599999999999997,-2.2000000000000002,0.2]
[29,0.24199999999999999,-0.2,0.3,71,0,0.15799999999999997,-2.2000000000000002,0.2]
[30,0.24,-0.2,0.3,70,0,0.15999999999999998,-2.2000000000000002,0.2]
[31,0.23799999999999999,-0.2,0.3,69,0,0.16199999999999998,-2.2000000000000002,0.2]
[32,0.23599999999999999,-0.2,0.3,68,0,0.16399999999999998,-2.2000000000000002,0.2]
[33,0.23399999999999999,-0.2,0.3,67,0,0.16599999999999998,-2.2000000000000002,0.2]
[34,0.23199999999999998,-0.2,0.3,66,0,0.16799999999999998,-2.2000000000000002,0.2]
[35,0.22999999999999998,-0.2,0.3,65,0,0.16999999999999998,-2.2000000000000002,0.2]
[36,0.22799999999999998,-0.2,0.3,64,0,0.17199999999999999,-2.2000000000000002,0.2]
[37,0.22599999999999998,-0.2,0.3,63,0,0.17399999999999999,-2.2000000000000002,0.2]
[38,0.22399999999999998,-0.2,0.3,62,0,0.17599999999999999,-2.2000000000000002,0.2]
[39,0.22199999999999998,-0.2,0.3,61,0,0.17799999999999999,-2.2000000000000002,0.2]
[40,0.21999999999999997,-0.2,0.3,60,0,0.18,-2.2000000000000002,0.2]
[41,0.21799999999999997,-0.2,0.3,59,0,0.182,-2.2000000000000002,0.2]
[42,0.21599999999999997,-0.2,0.3,58,0,0.184,-2.2000000000000002,0.2]
[43,0.21399999999999997,-0.2,0.3,57,0,0.186,-2.2000000000000002,0.2]
[44,0.21199999999999999,-0.2,0.3,56,0,0.188,-2.2000000000000002,0.2]
[45,0.21,-0.2,0.3,55,0,0.19,-2.2000000000000002,0.2]
[46,0.20799999999999999,-0.2,0.3,54,0,0.192,-2.2000000000000002,0.2]
[47,0.20599999999999999,-0.2,0.3,53,0,0.19400000000000001,-2.2000000000000002,0.2]
[48,0.20399999999999999,-0.2,0.3,52,0,0.19599999999999998,-2.2000000000000002,0.2]
[49,0.20199999999999999,-0.2,0.3,51,0,0.19799999999999998,-2.2000000000000002,0.2]
[50,0.19999999999999998,-0.2,0.3,50,0.2,0.19999999999999998,-2.2000000000000002,0.2]
[51,0.19799999999999998,-0.2,0.3,49,0.2,0.20199999999999999,{"$f":"IF($H$28>=G95,$H$28,IF($H$28<G95,-2.2))","v":-2.2000000000000002},-2.2000000000000002]
[52,0.19599999999999998,-0.2,0.3,48,0.2,0.20399999999999999,-2.2000000000000002,-2.2000000000000002]
[53,0.19400000000000001,-0.2,0.3,47,0.2,0.20599999999999999,-2.2000000000000002,-2.2000000000000002]
[54,0.192,-0.2,0.3,46,0.2,0.20799999999999999,-2.2000000000000002,-2.2000000000000002]
[55,0.19,-0.2,0.3,45,0.2,0.21,-2.2000000000000002,-2.2000000000000002]
[56,0.188,-0.2,0.3,44,0.2,0.21199999999999999,-2.2000000000000002,-2.2000000000000002]
[57,0.186,-0.2,0.3,43,0.2,0.21399999999999997,-2.2000000000000002,-2.2000000000000002]
[58,0.184,-0.2,0.3,42,0.2,0.21599999999999997,-2.2000000000000002,-2.2000000000000002]
[59,0.182,-0.2,0.3,41,0.2,0.21799999999999997,-2.2000000000000002,-2.2000000000000002]
[60,0.18,-0.2,0.3,40,0.2,0.21999999999999997,-2.2000000000000002,-2.2000000000000002]
[61,0.17799999999999999,-0.2,0.3,39,0.2,0.22199999999999998,-2.2000000000000002,-2.2000000000000002]
[62,0.17599999999999999,-0.2,0.3,38,0.2,0.22399999999999998,{"$f":"IF($H$28>=G106,$H$28,IF($H$28<G106,-2.2))","v":-2.2000000000000002},-2.2000000000000002]
[63,0.17399999999999999,-0.2,0.3,37,0.2,0.22599999999999998,-2.2000000000000002,-2.2000000000000002]
[64,{"$f":"$C$44*A108+$D$44","v":0.17199999999999999},-0.2,0.3,36,0.2,{"$f":"$C$44*E108+$D$44","v":0.22799999999999998},-2.2000000000000002,-2.2000000000000002]
[65,0.16999999999999998,-0.2,0.3,35,0.2,0.22999999999999998,{"$f":"IF($H$28>=G109,$H$28,IF($H$28<G109,-2.2))","v":-2.2000000000000002},-2.2000000000000002]
[66,0.16799999999999998,-0.2,0.3,34,0.2,0.23199999999999998,-2.2000000000000002,-2.2000000000000002]
[67,0.16599999999999998,-0.2,0.3,33,0.2,0.23399999999999999,-2.2000000000000002,-2.2000000000000002]
[68,0.16399999999999998,-0.2,0.3,32,0.2,0.23599999999999999,-2.2000000000000002,-2.2000000000000002]
[69,0.16199999999999998,-0.2,0.3,31,0.2,0.23799999999999999,-2.2000000000000002,-2.2000000000000002]
[70,0.15999999999999998,-0.2,0.3,30,0.2,0.24,-2.2000000000000002,-2.2000000000000002]
[71,0.15799999999999997,-0.2,0.3,29,0.2,0.24199999999999999,-2.2000000000000002,-2.2000000000000002]
[72,0.15599999999999997,-0.2,0.3,28,0.2,0.24399999999999999,-2.2000000000000002,-2.2000000000000002]
[73,0.154,-0.2,0.3,27,0.2,0.246,-2.2000000000000002,-2.2000000000000002]
[74,0.152,-0.2,0.3,26,0.2,0.248,-2.2000000000000002,-2.2000000000000002]
[75,0.15,-0.2,0.3,25,0.2,0.25,-2.2000000000000002,-2.2000000000000002]
[76,0.14799999999999999,-0.2,0.3,24,0.2,0.252,-2.2000000000000002,-2.2000000000000002]
[77,0.14599999999999999,-0.2,0.3,23,0.2,0.254,-2.2000000000000002,-2.2000000000000002]
[78,0.14399999999999999,-0.2,0.3,22,0.2,0.25600000000000001,-2.2000000000000002,-2.2000000000000002]
[79,0.14199999999999999,-0.2,0.3,21,0.2,0.25800000000000001,-2.2000000000000002,-2.2000000000000002]
[80,0.13999999999999999,-0.2,0.3,20,0.2,0.26,-2.2000000000000002,-2.2000000000000002]
[81,0.13799999999999998,-0.2,0.3,19,0.2,0.26200000000000001,-2.2000000000000002,-2.2000000000000002]
[82,0.13599999999999998,-0.2,0.3,18,0.2,0.26400000000000001,-2.2000000000000002,-2.2000000000000002]
[83,0.13399999999999998,-0.2,0.3,17,0.2,0.26600000000000001,-2.2000000000000002,-2.2000000000000002]
[84,0.13199999999999998,-0.2,0.3,16,0.2,0.26800000000000002,-2.2000000000000002,-2.2000000000000002]
[85,0.12999999999999998,-0.2,0.3,15,0.2,0.27,-2.2000000000000002,-2.2000000000000002]
[86,0.12799999999999997,-0.2,0.3,14,0.2,0.27199999999999996,-2.2000000000000002,-2.2000000000000002]
[87,0.12599999999999997,-0.2,0.3,13,0.2,0.27399999999999997,-2.2000000000000002,-2.2000000000000002]
[88,0.124,-0.2,0.3,12,0.2,0.27599999999999997,-2.2000000000000002,-2.2000000000000002]
[89,0.122,-0.2,0.3,11,0.2,0.27799999999999997,-2.2000000000000002,-2.2000000000000002]
[90,0.12,-0.2,0.3,10,0.2,0.27999999999999997,-2.2000000000000002,-2.2000000000000002]
[91,0.11799999999999999,-0.2,0.3,9,0.2,0.28199999999999997,-2.2000000000000002,-2.2000000000000002]
[92,0.11599999999999999,-0.2,0.3,8,0.2,0.28399999999999997,-2.2000000000000002,-2.2000000000000002]
[93,0.11399999999999999,-0.2,0.3,7,0.2,0.28599999999999998,-2.2000000000000002,-2.2000000000000002]
[94,0.11199999999999999,-0.2,0.3,6,0.2,0.28799999999999998,-2.2000000000000002,-2.2000000000000002]
[95,0.10999999999999999,-0.2,0.3,5,0.2,0.28999999999999998,-2.2000000000000002,-2.2000000000000002]
[96,{"$f":"$C$44*A140+$D$44","v":0.10799999999999998},-0.2,0.3,4,0.2,0.29199999999999998,-2.2000000000000002,-2.2000000000000002]
[97,{"$f":"$C$44*A141+$D$44","v":0.10599999999999998},-0.2,0.3,3,0.2,0.29399999999999998,-2.2000000000000002,-2.2000000000000002]
[98,{"$f":"$C$44*A142+$D$44","v":0.10399999999999998},-0.2,0.3,2,0.2,0.29599999999999999,-2.2000000000000002,-2.2000000000000002]
[99,{"$f":"$C$44*A143+$D$44","v":0.10199999999999998},-0.2,0.3,1,0.2,0.29799999999999999,-2.2000000000000002,-2.2000000000000002]
[100,{"$f":"$C$44*A144+$D$44","v":9.9999999999999978E-2},-0.2,0.3,0,0.2,0.3,-2.2000000000000002,-2.2000000000000002]

{"sheet":"C5_SPECIFIQUE","index":7,"n_rows":41,"n_cols":11,"rows_kept":41,"cut":false,"hidden":false,"merged":[[35,0,37,2],[35,3,35,4],[36,3,36,4],[38,1,38,2],[39,0,40,2],[39,3,40,3],[26,0,26,5],[28,0,28,8],[29,0,29,8],[30,0,30,8],[31,0,31,8],[20,1,20,4],[21,0,22,4],[10,0,12,8],[18,5,18,6],[18,7,18,8],[0,9,1,12],[7,0,9,8],[4,0,4,5],[17,5,17,6],[17,7,17,8],[0,0,1,8],[17,0,19,4]]}
["CRITÈRE 5 : CRITÈRE SPÉCIFIQUE ",null,null,null,null,null,null,null,null,"Tondeuse à gazon électrique filaire"]
[]
[]
[]
["SOUS-CRITÈRE 5.1 : ASSISTANCE À DISTANCE SANS FRAIS"]
[]
["PRÉCISIONS : "]
["- Une assistance à distance comprend tout système ayant pour but de faciliter la recherche d'informations en cas de panne, de renseignements pour identifier l’origine d’une panne ou d'aide à distance pour effectuer la réparation. En cas d'aide à la réparation à distance, le dispositif doit être capable de fournir un accompagnement technique et précis à l'utilisateur."]
[]
[]
["- Les dispositifs d'assistance à distance comprennent : les informations à distance (site internet, FAQ, etc.), l'aide au diagnostic à distance (ligne d'appel téléphonique, tchat, application incluse dans l'équipement, arbre de décision interactif, etc.) et l'aide à la réparation à distance (ligne d'appel téléphonique, appel par visio, prise en main de l'appareil à distance, etc.)"]
[]
[]
["- Les dispositifs d'aide à distance doivent être intégralement gratuits (y compris les appels téléphoniques dans le cas d'une hotline)."]
[]
[]
[]
["Assistance à distance",null,null,null,null,"Colonne B",null,"Colonne C"]
[null,null,null,null,null,"Réparateurs",null,"Consommateurs"]
[null,null,null,null,null,"Situation         ","Sous-total","Situation                      ","Sous-total"]
["5.1.A","Type d'assistance à distance",null,null,null,"Informations à jour sur site internet",{"$f":"IF(F21=\"Aucun\",0,IF(F21=\"Informations à jour sur site internet\",1,0))","v":1},"B : Informations à distance",{"$f":"IF(H21=\"A : Aucun\",0,IF(H21=\"B : Informations à distance\",1,IF(H21=\"C : Aide au diagnostic à distance\",2,IF(H21=\"D : Aide à la réparation à distance\",4,0))))","v":1}]
["Total sous-critère 5.1",null,null,null,null,null,{"$f":"SUM(G21:G21)","v":1},null,{"$f":"SUM(I21:I21)","v":1},{"$f":"SUM(G22,I22)","v":2},"/5"]
[null,null,null,null,null,null,null,null,null,{"$f":"J22*10/5","v":4},"/10"]
[]
[]
[]
["SOUS-CRITÈRE 5.2 : UTILISATION D'UNE BATTERIE MULTI-PRODUITS"]
[]
["PRÉCISION : "]
["- L'utilisation d'une batterie multi-produits est déterminée par la possibilité d'utiliser une batterie pouvant être compatible avec plusieurs "]
["équipements de la gamme de la marque (en indiquant les références de la gamme compatible). Ce sous-critère ne s'applique donc pas aux batteries "]
["monospécifiques, c'est-à-dire, celles compatibles pour une unique référence de la marque de l'équipement."]
[]
[]
[]
["Batterie multi-produits",null,null,"Colonne C"]
[null,null,null,"Consommateurs"]
[null,null,null,"Situation","Sous-total"]
["5.2.A","Possibilité d'utiliser d'une batterie multi-produits",null,"Satisfait",{"$f":"IF(D39=\"Non satisfait\",0,IF(D39=\"Satisfait\",1,0))","v":1}]
["Total sous-critère 5.2",null,null,null,{"$f":"SUM(E39:E39)","v":1},"/1"]
[null,null,null,null,{"$f":"E40*10","v":10},"/10"]

{"sheet":"NOTE_FINALE","index":8,"n_rows":29,"n_cols":8,"rows_kept":29,"cut":false,"hidden":false,"merged":[[25,1,25,3],[24,0,25,0],[24,6,25,6],[3,0,3,4],[6,0,6,1],[5,0,5,1],[7,0,7,1],[8,0,8,1],[8,2,8,7],[7,2,7,7],[6,2,6,7],[5,2,5,7],[15,7,24,7],[16,0,18,0],[16,1,16,3],[16,6,18,6],[17,1,17,3],[19,1,19,3],[24,1,24,3],[15,1,15,3],[19,0,22,0],[23,1,23,3],[28,0,31,7],[26,0,27,6],[26,7,27,7],[19,6,22,6],[0,0,1,3],[0,4,1,7],[10,0,14,0],[10,1,14,3],[10,4,14,4],[10,5,14,5],[10,6,14,6],[10,7,14,7],[20,1,20,3],[21,1,21,3],[22,1,22,3],[18,1,18,3]]}
["CALCUL DE L'INDICE DE RÉPARABILITÉ ET \nPRÉSENTATION DES PARAMÈTRES AYANT PERMIS DE L'ÉTABLIR",null,null,null,"Tondeuse à gazon électrique batterie"]
[]
[]
["FICHE D'INFORMATION À TRANSMETTRE AUX DEMANDEURS \n(cf. Article L. 541-9-2 du Code de l’environnement) "]
[]
["Date du calcul",null,{"$f":"INFORMATION_PRODUIT!C6","v":"2024-02-02"}]
["Nom ou marque commerciale du fournisseur",null,{"$f":"INFORMATION_PRODUIT!C18","v":"TORO"}]
["Adresse du fournisseur",null,{"$f":"INFORMATION_PRODUIT!C19","v":"8111 Lyndale Ave South Bloomington MN 55420-1196 USA "}]
["Référence du modèle donnée par le fournisseur",null,{"$f":"INFORMATION_PRODUIT!C20","v":75642}]
[]
["Critère","Sous-critère",null,null,"Note du sous-critère sur 10","Coefficient du sous critère","Note du critère sur 20"," Total des notes des critères \nsur 100"]
[]
[]
[]
[]
["CRITÈRE 1 : DOCUMENTATION","1.1 Durée de disponibilité de la documentation technique et relative aux conseils d'utilisation et d'entretien",null,null,{"$f":"'C1_DOCUMENTATION'!H45","v":10},2,{"$f":"(E16*F16)","v":20},{"$f":"SUM(G16:G25)","v":89.809259259259264}]
["CRITÈRE 2 : DÉMONTABILITÉ, ACCÈS, OUTILS, FIXATIONS","2.1 Facilité de démontage des pièces de la liste 2*",null,null,{"$f":"'C2_ACCES_DEMONTAGE'!E27","v":7.5},1,{"$f":"(F17*E17)+(F18*E18)+(F19*E19)","v":17.5}]
[null,"2.2 Outils nécessaires (liste 2)",null,null,{"$f":"'C2_ACCES_DEMONTAGE'!E47","v":10},0.5]
[null,"2.3 Caractéristiques des fixations entre les pièces de la liste 1** et de la liste 2",null,null,{"$f":"'C2_ACCES_DEMONTAGE'!E76","v":10},0.5]
["CRITÈRE 3 : DISPONIBILITÉ DES PIÈCES DÉTACHÉES","3.1 Durée de disponibilité des pièces de la liste 2",null,null,{"$f":"'C3_DISPONIBILITE_PD'!L29","v":10},1,{"$f":"(F20*E20)+(F21*E21)+(F22*E22)+(F23*E23)","v":18.30925925925926}]
[null,"3.2 Durée de disponibilité des pièces de la liste 1",null,null,{"$f":"'C3_DISPONIBILITE_PD'!L45","v":8.518518518518519},0.5]
[null,"3.3 Délais de livraison des pièces de la liste 2",null,null,{"$f":"'C3_DISPONIBILITE_PD'!L59","v":7.5},0.3]
[null,"3.4 Délais de livraison des pièces de la liste 1",null,null,{"$f":"'C3_DISPONIBILITE_PD'!L75","v":9},0.2]
["CRITÈRE 4 : PRIX DES PIÈCES DÉTACHÉES","4. Rapport prix des pièces de la liste 2 sur prix de l’équipement neuf",null,null,{"$f":"'C4_PRIX'!J28","v":10},2,{"$f":"E24*F24","v":20}]
["CRITÈRE 4 : CRITÈRE SPECIFIQUE","5.1.A Assistance à distance sans frais",null,null,{"$f":"'C5_SPECIFIQUE'!J23","v":4},1,{"$f":"E25*F25+E26*F26","v":14}]
[null,"5.2.A Batterie multi-produits",null,null,{"$f":"'C5_SPECIFIQUE'!$E$41","v":10},1]
["Note de l'indice sur 10      ",null,null,null,null,null,null,{"$f":"ROUND(H16/10,1)","v":9}]
[]
["*liste 2 : liste des 3 à 5 pièces détachées au maximum (selon la catégorie d’équipements concernée) dont la casse ou les pannes sont les plus fréquentes ;\n**liste 1 : liste de 10 autres pièces détachées au maximum (selon la catégorie d’équipements concernée) dont le bon état est nécessaire au fonctionnement de l’équipement."]

{"sheet":"ANNEXE_1","index":9,"n_rows":65,"n_cols":3,"rows_kept":65,"cut":false,"hidden":false,"merged":[[0,0,1,2],[3,0,3,2],[5,2,7,2],[8,2,11,2],[14,0,15,0],[14,2,18,2],[16,0,18,0]]}
["ANNEXE 1 : TERMINOLOGIE UTILISÉE DANS LE CADRE DU CALCUL DE L'INDICE DE RÉPARABILITÉ"]
[]
[]
["GLOSSAIRE : Les définitions des termes suivants sont précisées dans le décret relatif à l’indice de réparabilité des équipements électriques et électroniques : « Mise à disposition sur le marché », « Mise sur le marché », « producteur », « importateur », « distributeur », « vendeur », « vente à distance », « modèle ». "]
[]
["   Réparateur agréé","Le réparateur agréé est souvent désigné sous le terme de stations techniques ou de centres de services agréés. Il s’agit d’un réparateur professionnel pour lequel un ou plusieurs contrats définissent précisément la relation entre le réparateur agréé et le ou les producteurs. ","Basé sur l'expertise technique des groupes de travail de l'indice de réparabilité."]
["   Réparateur indépendant","Les réparateurs indépendants sont les réparateurs au sens « d’artisans réparateurs professionnels » désignant les entreprises de la réparation inscrites au répertoire des métiers avec un code APE ou NAFA. Il s’agit de réparateur professionnel n’entrant pas dans la catégorie des réparateurs agréés. Par exemple, 95.11 Z-Z : Réparation d'ordinateurs et d'équipements périphériques; 95.21 Z-Z : Réparation de télévisions, récepteurs radio, Magnétoscopes, lecteurs de CD et DVD, caméscopes destinés à un usage domestique; 95. 22 Z-Z : Réparation d'appareils électroménagers et d'équipements pour la maison et le jardin."]
["   Réparateur professionnel ","Réparateur agréé ou réparateur indépendant.  "]
["   Distributeur en pièces détachées","Toute personne physique ou morale faisant partie de la chaîne d'approvisionnement, autre que le producteur ou l'importateur, qui propose à la vente une pièce détachée. Ils sont communément appelés « grossistes en pièces détachés ».","D'après la Norme NF EN 45554 \"Méthodes générales pour l'évaluation de la capacité de réparation, réutilisation et amélioration des produits liés à l'énergie\", 2020."]
["   Démontage","Processus par lequel un produit, une pièce détachée ou une fixation est démonté(e) de manière à pouvoir ensuite être remonté(e) et rendu(e) opérationnel(le)."]
["   Remontage","Processus par lequel un produit, une pièce détachée ou une fixation est remonté(e) de manière ensuite à remplir son rôle fonctionnel(le) et être rendu(e) opérationnel(le)."]
["   Réutilisation / Réutilisable","Processus par lequel un produit, une pièce détachée ou une fixation, ayant atteint la fin de sa première utilisation, est utilisé(e) dans le même but pour lequel il ou elle a été conçu(e). Une réutilisation après une deuxième ou plusieurs utilisation(s) est également considérée comme une réutilisation."]
["   Restauration d'usine","Fonctionnalité ou réglage spécifique à activer par le client, si le produit le permet, afin de rétablir la valeur par défaut d’une fonctionnalité spécifique de l’appareil telle qu'elle a été définie en usine et qui est disponible lorsque le client utilise le produit pour la première fois.","Inspiré du Règlement (UE) 2019/2021 de la Commission Européenne du 1er octobre 2019 fixant des exigences d’écoconception pour les dispositifs d’affichage électroniques conformément à la Directive 2009/125/CE du Parlement européen et du Conseil, modifiant le règlement (CE) No 1275/2008 de la Commission et abrogeant le règlement (CE) No 642/2009 de la Commission (Texte relatif aux EEE)."]
["   Mise à jour / Mise à niveau","Processus d'amélioration de la fonctionnalité, des performances, de la capacité ou de l'esthétique d'un produit. Ce processus peut impliquer des modifications du logiciel, du micrologiciel et / ou d'un composant matériel du produit.","D'après la Norme NF EN 45554 \"Méthodes générales pour l'évaluation de la capacité de réparation, réutilisation et amélioration des produits liés à l'énergie\", 2020."]
["   Mise à jour corrective",null,"Inspiré de la Norme AFNOR NF EN 13306 X 60-319 de juin 2011 \"Ensemble de toutes les actions techniques, administratives et de management durant le cycle de vie d'un bien, destinées à le maintenir ou à le rétablir dans un état dans lequel il peut accomplir la fonction requise\""]
[null,"Mise à jour exécutée après détection d'une panne et destinée à remettre un bien ou un logiciel dans un état dans lequel il peut accomplir une fonction requise. Ce type de mise à jour corrige les défauts de fonctionnement ou de non-conformité du matériel ou d’un logiciel mais n’ajoute pas de nouvelles fonctionnalités."]
["   Mise à jour évolutive"]
[null,"Mise à jour consistant à modifier progressivement l’application logicielle en l’enrichissant de nouvelles fonctionnalités ou de modules supplémentaires, ou en remplaçant une fonction existante par une autre, voire en proposant une approche différente."]
[]
["   Fixation","Dispositif matériel qui raccorde ou fixe mécaniquement ou magnétiquement deux ou plusieurs objets, parties ou pièces détachées. Une fixation est généralement non permanente, c'est à dire, qu'elle peut être enlevée ou démontée facilement sans endommager les objets, parties ou pièces détachées raccordée(s) ou fixée(s) ensemble (exemple : vis ou clips). Les soudures et certains collages sont à contrario des fixations permanentes. Les adhésifs sont considérés comme des fixations non réutilisable sauf si de nouveaux sont fournis avec la pièce détachée. ","Inspiré de Lamar, \"Fasteners - Their Needs and Types\", Bright Hub Engineering, 2020."]
["  Fixation réutilisable ","Voir la définition de « réutilisable »  ","D'après la Norme NF EN 45554 \"Méthodes générales pour l'évaluation de la capacité de réparation, réutilisation et amélioration des produits liés à l'énergie\", 2020."]
["  Fixation amovible ","Un système de fixations d'origine pouvant être complètement retiré (sans causé de dommages ni laisser de résidus)."]
["  Outil propriétaire","Outil non disponible dans le commerce et appartenant exclusivement à une partie ou une entreprise, et en vertu duquel, son utilisation par une autre partie (un utilisateur final ou un client) implique des droits d'auteurs, une licence et/ou un coût.","Inspiré de Will Kenton, \"Proprietary Technology\", 2019."]
["  Outil spécifique","Outil qui ne figure pas dans la liste des outils communs sans être un outil propriétaire. "]
["  Pièce / Pièces détachée","Elément unitaire rentrant dans la composition de l’équipement. "]
[]
[]
["VOCABULAIRE EUROPEEN"]
[]
["Eco-conception des lave-linges ","Ecodesign of washing machines"]
["RÈGLEMENT (UE) 2019/2023 DE LA COMMISSION  du 1er octobre 2019 établissant des exigences en matière d’écoconception applicables aux lave-linge ménagers et aux lave-linge séchants ménagers conformément à la directive 2009/125/CE du Parlement européen et du Conseil, modifiant le règlement (CE) no 1275/2008 de la Commission et abrogeant le règlement (UE) no 1015/2010 de la Commission.","COMMISSION REGULATION (EU) 2019/2021\nOf 1 October 2019 laying down ecodesign requirements for electronic displays pursuant to Directive 2009/125/EC of the European Parliament and of the Council, amending Commission Regulation (EC) No 1275/2008 and repealing Commission Regulation (EC) No 642/2009\n"]
[]
["Liste des informations à fournir (documentation)"]
[]
["→  Les informations de réparation et d’entretien du lave-linge ménager ou du lave-linge séchant ménager mentionnées au point a) comprennent :"," → the household washing machine or household washer-dryer repair and maintenance information referred to in (a) shall include :"]
[]
["une identification sans équivoque du lave-linge ménager ou du lave-linge séchant ménager","the unequivocal household washing machine or household washer-dryer identification"]
["un schéma de démontage ou une vue éclatée","a disassembly map or exploded view"]
["un manuel technique d’instructions relatives à la réparation","technical manual of instructions for repair"]
["une liste du matériel de réparation et de test nécessaire","list of necessary repair and test equipment"]
["les informations concernant les composants et le diagnostic (telles que les valeurs théoriques minimales et maximales pour les mesures)","component and diagnosis information (such as minimum and maximum theoretical values for measurements)"]
["des schémas de câblage et de raccordement","wiring and connection diagrams"]
["les codes d’erreur et de diagnostic (y compris les codes spécifiques au fabricant, le cas échéant)","diagnostic fault and error codes (including manufacturer-specific codes, where applicable)"]
["les instructions pour l’installation des logiciels et micrologiciels pertinents, y compris les logiciels de réinitialisation","instructions for installation of relevant software and firmware including reset software"]
["les informations sur les modalités d’accès aux données relatives aux incidents de défaillance signalés enregistrées dans le lave-linge ménager ou le lave-linge séchant ménager (le cas échéant)","information on how to access data records of reported failure incidents stored on the household washing machine or washer-dryer (where applicable)"]
[]
["Liste des pièces détachées à mettre à disposition"]
[]
["Moteur et balais de moteur","Motor and motor brushes"]
["Transmission entre moteur et tambour","Transmission between motor and drum"]
["Pompes","Pumps"]
["Amortisseurs et ressorts","Shock absorbers and springs"]
["Tambour de lavage, croisillon de tambour et roulements correspondants (séparément ou en lot)","Washing drum, drum spider and related ball bearings (separately or bundled)"]
["Générateurs de chaleurs et éléments chauffants, y compris les pompes à chaleur, (séparément ou groupés)","Heaters and heating elements, including heat pumps (separately or bundled)"]
["Conduites et matériel connexe y compris l’ensemble des flexibles, vannes, filtres et systèmes aquastop (séparé­ment ou groupés)","Piping and related equipment including all hoses, valves, filters and aquastops (separately or bundled)"]
["Cartes de circuit imprimé","Printed circuit boards"]
["Affichages électroniques","Electronic displays"]
["Manocontacts","Pressure switches"]
["Thermostats et capteurs","Thermostats and sensors"]
["Logiciels et micrologiciels, y compris logiciels de réinitialisation","Software and firmware including reset software"]
["Portes","Door"]
["Charnières et joints de porte","Door hinge and seals"]
["Autres joints","Other seals"]
["Assemblage de verrouillage de la porte","Door locking assembly"]
["Accessoires en matière plastique tels que distributeurs de détergent","Plastic peripherals such as detergent dispensers"]

{"sheet":"ANNEXE_2","index":10,"n_rows":25,"n_cols":3,"rows_kept":25,"cut":false,"hidden":false,"merged":[[0,6,1,8],[0,0,1,2],[5,0,6,0],[5,2,6,2],[2,0,3,2],[0,3,1,5]]}
["ANNEXE 2 : OUTILS COMMUNS ET LEURS NORMES DE RÉFÉRENCE"]
[]
["D'après la Norme NF EN 45554 \"Méthodes générales pour l'évaluation de la capacité de réparation, réutilisation et amélioration des produits liés à l'énergie\", 2020."]
[]
[]
["Type d’outils","Illustration","Référence"]
[null,"(illustration informative)"]
["Tournevis à tête fendue, à empreinte cruciforme et à empreinte à six lobes internes.",null,"ISO 2380, ISO 8764, ISO 10664"]
["Clé pour vis à six pans creux",null,"ISO 2936"]
["Clé mixte",null,"ISO 7738"]
["Pince universelle",null,"ISO 5746"]
["Pince à bec demi-rond",null,"ISO 5745"]
["Pince coupante diagonale",null,"ISO 5749"]
["Pince mutliprise",null,"ISO 8976"]
["Pince étau"]
["Pince universelle pour dénudage et sertissage des terminaux"]
["Levier"]
["Pincette"]
["Marteau (tête métallique)",null,"ISO 15601"]
["Couteau univsersel (cutter) avec lame rétractable"]
["Multimètre"]
["Voltmètre (testeur de tension)"]
["Fer à souder"]
["Pistolet à colle"]
["Loupe"]

{"sheet":"ANNEXE_3","index":11,"n_rows":1,"n_cols":1,"rows_kept":1,"cut":false,"hidden":false,"merged":[[0,0,1,10]]}
["ANNEXE 3 : PRÉCISION SUR LA NOTION D'ÉTAPE DE DÉMONTAGE ET CAS D'APPLICATION CONCRET"]